Workbook

Sheet Sommaire
B3: Applic1 | C3: Références absolues, RECHERCHEV, SI | E3: Ci-contre, vous pouvez utiliser les liens hypertextes de façon à atteindre une application selon le thème précisé en colonne B.
E4: Sur chaque feuille est présenté l'exercice à réaliser. Un bouton 'Help' permet d'afficher la feuille contenant le corrigé.
B5: Applic2 | C5: SI, SI.CONDITIONS, RECHERCHEV | E5: Avant de commencer, masquer tous les corrigés en utilisant le bouton de la barre d'outils 'Employés'
B7: Applic3 | C7: RECHERCHEV par valeur proche | E7: Lors de la réalisation des exercices, nous effectuerons d'abord tous les calculs avant d'afficher le corrigé pour voir y voir les résolutions
B9: Applic4 | C9: RECHERCHEV, limites et solutions
C10: EQUIV, INDEX
C11: RECHERCHEX

Sheet Applic1
A1: Titre | B1: Référence de l'auteur | C1: Prix | D1: Prix avec réduction 1 | E1: Prix avec réduction 2 | F1: Nom de l'auteur | G1: Prénom de l'auteur | K1: Retour sommaire
A2: Cartes sur table | B2: 13 | C2: 10
A3: Drame en trois actes | B3: 13 | C3: 12 | I3: 1) Calculez le prix avec réduction (= prix - taux * prix ). Utilisez le taux se trouvant dans la cellule ci-dessous
A4: Contes | B4: 2 | C4: 12
A5: Dix petits nègres | B5: 13 | C5: 15 | I5: Taux : | J5: 0.1
A6: Café turc | B6: 5 | C6: 12
A7: Poétique | B7: 4 | C7: 18 | I7: 2) Calculez un prix avec une réduction supplémentaire de 5% pour les livres qui coûtent 15 € ou plus
A8: La Main froide | B8: 12 | C8: 12
A9: Cinq petits cochons | B9: 13 | C9: 12 | I9: 3) A partir de la liste ci-dessous, complétez les noms et prénoms des auteurs
A10: Conan Lord | B10: 12 | C10: 17
A11: La mort l'aime chaud | B11: 11 | C11: 12 | J11: Id_Auteur | K11: Nom | L11: Prénom
A12: Le Spleen de Paris | B12: 8 | C12: 15 | J12: 1 | K12: Alain-Fournier
A13: La Case de l'oncle Tom | B13: 9 | C13: 10 | J13: 2 | K13: Andersen | L13: Hans Christian
A14: Jeux de glaces | B14: 13 | C14: 15 | J14: 4 | K14: Aristote
A15: Rhétorique | B15: 4 | C15: 18 | J15: 5 | K15: Arjouni | L15: Jakob
A16: L'étameur des morts | B16: 6 | C16: 12 | J16: 6 | K16: Arnaud | L16: Georges J.
A17: A.B.C. contre Poirot | B17: 13 | C17: 12 | J17: 7 | K17: Balzac (de) | L17: Honoré
A18: le mystérieux Mr Quinn | B18: 13 | C18: 15 | J18: 8 | K18: Baudelaire | L18: Charles
A19: L'heure zéro | B19: 13 | C19: 15 | J19: 9 | K19: Beecher-Stowe | L19: Harriet
A20: La Fille de la nuit | B20: 12 | C20: 10 | J20: 10 | K20: Boccace | L20: Giovanni
J21: 11 | K21: Box | L21: Edgar
J22: 12 | K22: Brussolo | L22: Serge
J23: 13 | K23: Christie | L23: Agatha

Sheet Applic1_corrigé (hidden)
A1: Titre | B1: Référence de l'auteur | C1: Prix | D1: Prix avec réduction 1 | E1: Prix avec réduction 2 | F1: Nom de l'auteur | G1: Prénom de l'auteur
A2: Cartes sur table | B2: 13 | C2: 10 | D2: =C2-$J$5*C2 -> 9 | E2: =IF(C2>=15,D2-5%*D2,D2) -> 9 | F2: =VLOOKUP(B2,$J$20:$L$31,2) -> Christie | G2: =VLOOKUP(B2,$J$19:$L$31,3) -> Agatha
A3: Drame en trois actes | B3: 13 | C3: 12 | D3: =C3-$J$5*C3 -> 10.8 | E3: =IF(C3>=15,D3-5%*D3,D3) -> 10.8 | F3: =VLOOKUP(B3,$J$20:$L$31,2) -> Christie | G3: =VLOOKUP(B3,$J$19:$L$31,3) -> Agatha | I3: 1) Calculez le prix avec réduction (= prix - taux * prix ). Utilisez le taux se trouvant dans la cellule ci-dessous
A4: Contes | B4: 2 | C4: 12 | D4: 10.8 | E4: 10.8 | F4: Andersen | G4: Hans Christian
A5: Dix petits nègres | B5: 13 | C5: 15 | D5: 13.5 | E5: 12.825 | F5: Christie | G5: Agatha | I5: Taux : | J5: 0.1
A6: Café turc | B6: 5 | C6: 12 | D6: 10.8 | E6: 10.8 | F6: Arjouni | G6: Jakob
A7: Poétique | B7: 4 | C7: 18 | D7: 16.2 | E7: 15.39 | F7: Aristote | I7: NB : Attention, la cellule du taux doit être en référence absolue ($J$5)
A8: La Main froide | B8: 12 | C8: 12 | D8: 10.8 | E8: 10.8 | F8: Brussolo | G8: Serge
A9: Cinq petits cochons | B9: 13 | C9: 12 | D9: 10.8 | E9: 10.8 | F9: Christie | G9: Agatha | I9: 2) Calculez un prix avec une réduction supplémentaire de 5% pour les livres qui coûtent 15 € ou plus
A10: Conan Lord | B10: 12 | C10: 17 | D10: 15.3 | E10: 14.535 | F10: Brussolo | G10: Serge
A11: La mort l'aime chaud | B11: 11 | C11: 12 | D11: 10.8 | E11: 10.8 | F11: Box | G11: Edgar | J11: SI Prix >= 15
A12: Le Spleen de Paris | B12: 8 | C12: 15 | D12: 13.5 | E12: 12.825 | F12: Baudelaire | G12: Charles | J12: ALORS PrixRéd1 - 5% * PrixRéd1
A13: La Case de l'oncle Tom | B13: 9 | C13: 10 | D13: 9 | E13: 9 | F13: Beecher-Stowe | G13: Harriet | J13: SINON PrixRéd1
A14: Jeux de glaces | B14: 13 | C14: 15 | D14: 13.5 | E14: 12.825 | F14: Christie | G14: Agatha
A15: Rhétorique | B15: 4 | C15: 18 | D15: 16.2 | E15: 15.39 | F15: Aristote | I15: 3) A partir de la liste ci-dessous, complétez les noms et prénoms des auteurs
A16: L'étameur des morts | B16: 6 | C16: 12 | D16: 10.8 | E16: 10.8 | F16: Arnaud | G16: Georges J.
A17: A.B.C. contre Poirot | B17: 13 | C17: 12 | D17: 10.8 | E17: 10.8 | F17: Christie | G17: Agatha | I17: NB : Attention, le tableau des données 'Auteurs'doit être en référence absolue ($J$20:$L$31)
A18: le mystérieux Mr Quinn | B18: 13 | C18: 15 | D18: 13.5 | E18: 12.825 | F18: Christie | G18: Agatha
A19: L'heure zéro | B19: 13 | C19: 15 | D19: 13.5 | E19: 12.825 | F19: Christie | G19: Agatha | J19: Id_Auteur | K19: Nom | L19: Prénom
A20: La Fille de la nuit | B20: 12 | C20: 10 | D20: 9 | E20: 9 | F20: Brussolo | G20: Serge | J20: 1 | K20: Alain-Fournier
J21: 2 | K21: Andersen | L21: Hans Christian
J22: 4 | K22: Aristote
J23: 5 | K23: Arjouni | L23: Jakob
J24: 6 | K24: Arnaud | L24: Georges J.
J25: 7 | K25: Balzac (de) | L25: Honoré
J26: 8 | K26: Baudelaire | L26: Charles
J27: 9 | K27: Beecher-Stowe | L27: Harriet
J28: 10 | K28: Boccace | L28: Giovanni
J29: 11 | K29: Box | L29: Edgar
J30: 12 | K30: Brussolo | L30: Serge
J31: 13 | K31: Christie | L31: Agatha

Sheet Applic2_consignes
M1: Retour sommaire
B3: 1) Ecrire 'Madame' ou 'Monsieur' selon le sexe de la personne
B5: NB : plusieurs fonctions seront utilisées pour réaliser l'exercice
B8: 2) Ecrire 'Madame', 'Mademoiselle' ou 'Monsieur' selon le sexe et l'état civil
B10: 3) Utiliser la liste suivante de façon à obtenir la ville qui correspond au code postal de la personne
C12: CP | D12: Ville
C13: 1030 | D13: Schaerbeek
C14: 1000 | D14: Bruxelles
C15: 1070 | D15: Anderlecht
C16: 1050 | D16: Ixelles
C17: 1060 | D17: Saint-Gilles
C18: 1040 | D18: Etterbeek
B20: 4) Calculer les âges des employés
B22: 5) Dans la colonne 'Catégorie', écrire la catégorie des employés qui dépend de l'âge selon les indications suivantes :
C24: Age | D24: Catégorie
C25: <25 | D25: A
C26: >=25 et <35 | D26: B
C27: >=35 et <45 | D27: C
C28: >=45 et <55 | D28: D
C29: >=55 | D29: E
B31: 6) Calculer le salaire qui dépend du sservice dans lequel travaille l'employé
C33: Services | D33: Salaire minimum
C34: Direction | D34: 2500
C35: Informatique | D35: 1900
C36: Secrétariat | D36: 1700
C37: Personnel | D37: 1600

Sheet Applic2
A1: Nom | B1: Prénom | C1: Sexe | D1: Mme, Mr (*) (SI) | E1: Mme, Mr (*) (SI.CONDITIONS) | F1: Mme, Mr (*) (RECHERCHEV) | G1: Etat civil | H1: Mme, Mlle, Mr (**) (SI) | I1: Mme, Mlle, Mr (**) (SI.Conditions) | J1: CP | K1: Ville | L1: Date de naissance | M1: Age | N1: Catégorie (SI) (***) | O1: Catégorie (SI.Conditions) (***) | P1: Catégorie (RechercheV) (CF Applic3) | Q1: Services | R1: Salaires | T1: Retour sommaire
A2: Bistrot | B2: Alonso | C2: m | G2: Marié(e) | J2: 1030 | L2: 1966-01-17 | Q2: Informatique
A3: Bijoba | B3: Jo | C3: m | G3: Marié(e) | J3: 1000 | L3: 1996-03-15 | Q3: Direction
A4: Covert | B4: Harry | C4: m | G4: Divorcé(e) | J4: 1000 | L4: 2000-02-10 | Q4: Personnel
A5: Culaire | B5: Laury | C5: m | G5: Marié(e) | J5: 1030 | L5: 1965-05-05 | Q5: Personnel
A6: Deuf | B6: John | C6: m | G6: Célibataire | J6: 1070 | L6: 1993-09-08 | Q6: Informatique
A7: Foupasune | B7: Jean | C7: m | G7: Célibataire | J7: 1070 | L7: 1975-08-07 | Q7: Personnel
A8: Lairbon | B8: Oussama | C8: m | G8: Marié(e) | J8: 1030 | L8: 1983-02-08 | Q8: Personnel
A9: Menvussa | B9: Gérard | C9: m | G9: Célibataire | J9: 1050 | L9: 1970-12-04 | Q9: Informatique
A10: Lalalalalalala | B10: Starsky | C10: m | G10: Célibataire | J10: 1060 | L10: 1955-07-08 | Q10: Personnel
A11: Lalalalalalala | B11: Hutch | C11: m | G11: Divorcé(e) | J11: 1050 | L11: 1952-10-07 | Q11: Direction
A12: Cléssoulaporte | B12: Djamila | C12: f | G12: Marié(e) | J12: 1050 | L12: 1989-09-07 | Q12: Personnel
A13: Noux | B13: Marion | C13: f | G13: Divorcé(e) | J13: 1050 | L13: 1978-12-30 | Q13: Secrétariat
A14: Ouzi | B14: Jacques | C14: m | G14: Célibataire | J14: 1000 | L14: 1969-02-28 | Q14: Personnel
A15: Stiké | B15: Sophie | C15: f | G15: Divorcé(e) | J15: 1070 | L15: 1998-04-04 | Q15: Secrétariat
A16: Tare | B16: Guy | C16: m | G16: Divorcé(e) | J16: 1070 | L16: 1960-08-07 | Q16: Informatique
A17: Vaisselle | B17: Aude | C17: f | G17: Marié(e) | J17: 1070 | L17: 1966-06-06 | Q17: Secrétariat
A18: Zetofrais | B18: Mélanie | C18: f | G18: Célibataire | J18: 1070 | L18: 1978-11-25 | Q18: Direction
A19: Touille | B19: Sasha | C19: m | G19: Célibataire | J19: 1070 | L19: 2000-10-30 | Q19: Personnel
A20: Proviste | B20: Alain | C20: m | G20: Marié(e) | J20: 1030 | L20: 1959-09-09 | Q20: Personnel
A21: Peulaporte | B21: Firmin | C21: m | G21: Divorcé(e) | J21: 1040 | L21: 1993-07-01 | Q21: Informatique
A22: Unetitlaine | B22: Jérémy | C22: m | G22: Marié(e) | J22: 1030 | L22: 1983-06-09 | Q22: Informatique
A24: NB : les consignes sont précisées sur la feuille précédente.

Sheet Applic2_corrigé (hidden)
A1: Nom | B1: Prénom | C1: Sexe | D1: Mme, Mr (*) (SI) | E1: Mme, Mr (*) (SI.CONDITIONS) | F1: Mme, Mr (*) (RECHERCHEV) | G1: Etat civil | H1: Mme, Mlle, Mr (**) (SI) | I1: Mme, Mlle, Mr (**) (SI.Conditions) | J1: CP | K1: Ville | L1: Date de naissance | M1: Age | N1: Catégorie (SI) (***) | O1: Catégorie (SI.Conditions) (***) | P1: Catégorie (RechercheV) (CF Applic3) | Q1: Services | R1: Salaires
A2: Bistrot | B2: Alonso | C2: m | D2: =IF(C2="f","Madame","Monsieur") -> Monsieur | E2: =_xlfn.IFS(C2="f","Madame",C2="m","Monsieur") -> Monsieur | F2: =VLOOKUP(C2,$C$38:$D$39,2,FALSE) -> Monsieur | G2: Marié(e) | H2: =IF(AND(C2="f",OR(G2="Marié(e)",G2="Divorcé(e)")),"Madame",IF(AND(C2="f",G2="Célibataire"),"Mademoiselle","Monsieur")) -> Monsieur | I2: =_xlfn.IFS(C2="m","Monsieur",G2="Célibataire","Mademoiselle",C2<>"m","Madame") -> Monsieur | J2: 1030 | K2: =VLOOKUP(J2,Applic2_consignes!$C$13:$D$18,2,FALSE) -> Schaerbeek | L2: 1966-01-17 | M2: =DATEDIF(L2,TODAY(),"y") -> 57 | N2: =IF(M2<25,"A",IF(M2<35,"B",IF(M2<45,"C",IF(M2<55,"D","E")))) -> E | O2: =_xlfn.IFS(M2<25,"A",M2<35,"B",M2<45,"C",M2<55,"D",M2>=55,"E") -> E | Q2: Informatique | R2: =VLOOKUP(Q2,Applic2_consignes!$C$34:$D$37,2,FALSE) -> 1900
A3: Bijoba | B3: Jo | C3: m | D3: =IF(C3="f","Madame","Monsieur") -> Monsieur | E3: =_xlfn.IFS(C3="f","Madame",C3="m","Monsieur") -> Monsieur | F3: =VLOOKUP(C3,$C$38:$D$39,2,FALSE) -> Monsieur | G3: Marié(e) | H3: Monsieur | I3: =_xlfn.IFS(C3="m","Monsieur",G3="Célibataire","Mademoiselle",C3<>"m","Madame") -> Monsieur | J3: 1000 | K3: =VLOOKUP(J3,Applic2_consignes!$C$13:$D$18,2,FALSE) -> Bruxelles | L3: 1996-03-15 | M3: =DATEDIF(L3,TODAY(),"y") -> 27 | N3: =IF(M3<25,"A",IF(M3<35,"B",IF(M3<45,"C",IF(M3<55,"D","E")))) -> B | O3: =_xlfn.IFS(M3<25,"A",M3<35,"B",M3<45,"C",M3<55,"D",M3>=55,"E") -> B | Q3: Direction | R3: =VLOOKUP(Q3,Applic2_consignes!$C$34:$D$37,2,FALSE) -> 2500
A4: Covert | B4: Harry | C4: m | D4: Monsieur | E4: =_xlfn.IFS(C4="f","Madame",C4="m","Monsieur") -> Monsieur | F4: Monsieur | G4: Divorcé(e) | H4: Monsieur | I4: =_xlfn.IFS(C4="m","Monsieur",G4="Célibataire","Mademoiselle",C4<>"m","Madame") -> Monsieur | J4: 1000 | K4: =VLOOKUP(J4,Applic2_consignes!$C$13:$D$18,2,FALSE) -> Bruxelles | L4: 2000-02-10 | M4: 23 | N4: A | O4: =_xlfn.IFS(M4<25,"A",M4<35,"B",M4<45,"C",M4<55,"D",M4>=55,"E") -> A | Q4: Personnel | R4: =VLOOKUP(Q4,Applic2_consignes!$C$34:$D$37,2,FALSE) -> 1600
A5: Culaire | B5: Laury | C5: m | D5: Monsieur | E5: =_xlfn.IFS(C5="f","Madame",C5="m","Monsieur") -> Monsieur | F5: Monsieur | G5: Marié(e) | H5: Monsieur | I5: =_xlfn.IFS(C5="m","Monsieur",G5="Célibataire","Mademoiselle",C5<>"m","Madame") -> Monsieur | J5: 1030 | K5: =VLOOKUP(J5,Applic2_consignes!$C$13:$D$18,2,FALSE) -> Schaerbeek | L5: 1965-05-05 | M5: 58 | N5: E | O5: =_xlfn.IFS(M5<25,"A",M5<35,"B",M5<45,"C",M5<55,"D",M5>=55,"E") -> E | Q5: Personnel | R5: =VLOOKUP(Q5,Applic2_consignes!$C$34:$D$37,2,FALSE) -> 1600
A6: Deuf | B6: John | C6: m | D6: Monsieur | E6: =_xlfn.IFS(C6="f","Madame",C6="m","Monsieur") -> Monsieur | F6: Monsieur | G6: Célibataire | H6: Monsieur | I6: =_xlfn.IFS(C6="m","Monsieur",G6="Célibataire","Mademoiselle",C6<>"m","Madame") -> Monsieur | J6: 1070 | K6: =VLOOKUP(J6,Applic2_consignes!$C$13:$D$18,2,FALSE) -> Anderlecht | L6: 1993-09-08 | M6: 29 | N6: B | O6: =_xlfn.IFS(M6<25,"A",M6<35,"B",M6<45,"C",M6<55,"D",M6>=55,"E") -> B | Q6: Informatique | R6: =VLOOKUP(Q6,Applic2_consignes!$C$34:$D$37,2,FALSE) -> 1900
A7: Foupasune | B7: Jean | C7: m | D7: Monsieur | E7: =_xlfn.IFS(C7="f","Madame",C7="m","Monsieur") -> Monsieur | F7: Monsieur | G7: Célibataire | H7: Monsieur | I7: =_xlfn.IFS(C7="m","Monsieur",G7="Célibataire","Mademoiselle",C7<>"m","Madame") -> Monsieur | J7: 1070 | K7: =VLOOKUP(J7,Applic2_consignes!$C$13:$D$18,2,FALSE) -> Anderlecht | L7: 1975-08-07 | M7: 47 | N7: D | O7: =_xlfn.IFS(M7<25,"A",M7<35,"B",M7<45,"C",M7<55,"D",M7>=55,"E") -> D | Q7: Personnel | R7: =VLOOKUP(Q7,Applic2_consignes!$C$34:$D$37,2,FALSE) -> 1600
A8: Lairbon | B8: Oussama | C8: m | D8: Monsieur | E8: =_xlfn.IFS(C8="f","Madame",C8="m","Monsieur") -> Monsieur | F8: Monsieur | G8: Marié(e) | H8: Monsieur | I8: =_xlfn.IFS(C8="m","Monsieur",G8="Célibataire","Mademoiselle",C8<>"m","Madame") -> Monsieur | J8: 1030 | K8: =VLOOKUP(J8,Applic2_consignes!$C$13:$D$18,2,FALSE) -> Schaerbeek | L8: 1983-02-08 | M8: 40 | N8: C | O8: =_xlfn.IFS(M8<25,"A",M8<35,"B",M8<45,"C",M8<55,"D",M8>=55,"E") -> C | Q8: Personnel | R8: =VLOOKUP(Q8,Applic2_consignes!$C$34:$D$37,2,FALSE) -> 1600
A9: Menvussa | B9: Gérard | C9: m | D9: Monsieur | E9: =_xlfn.IFS(C9="f","Madame",C9="m","Monsieur") -> Monsieur | F9: Monsieur | G9: Célibataire | H9: Monsieur | I9: =_xlfn.IFS(C9="m","Monsieur",G9="Célibataire","Mademoiselle",C9<>"m","Madame") -> Monsieur | J9: 1050 | K9: =VLOOKUP(J9,Applic2_consignes!$C$13:$D$18,2,FALSE) -> Ixelles | L9: 1970-12-04 | M9: 52 | N9: D | O9: =_xlfn.IFS(M9<25,"A",M9<35,"B",M9<45,"C",M9<55,"D",M9>=55,"E") -> D | Q9: Informatique | R9: =VLOOKUP(Q9,Applic2_consignes!$C$34:$D$37,2,FALSE) -> 1900
A10: Lalalalalalala | B10: Starsky | C10: m | D10: Monsieur | E10: =_xlfn.IFS(C10="f","Madame",C10="m","Monsieur") -> Monsieur | F10: Monsieur | G10: Célibataire | H10: Monsieur | I10: =_xlfn.IFS(C10="m","Monsieur",G10="Célibataire","Mademoiselle",C10<>"m","Madame") -> Monsieur | J10: 1060 | K10: =VLOOKUP(J10,Applic2_consignes!$C$13:$D$18,2,FALSE) -> Saint-Gilles | L10: 1955-07-08 | M10: 67 | N10: E | O10: =_xlfn.IFS(M10<25,"A",M10<35,"B",M10<45,"C",M10<55,"D",M10>=55,"E") -> E | Q10: Personnel | R10: =VLOOKUP(Q10,Applic2_consignes!$C$34:$D$37,2,FALSE) -> 1600
A11: Lalalalalalala | B11: Hutch | C11: m | D11: Monsieur | E11: =_xlfn.IFS(C11="f","Madame",C11="m","Monsieur") -> Monsieur | F11: Monsieur | G11: Divorcé(e) | H11: Monsieur | I11: =_xlfn.IFS(C11="m","Monsieur",G11="Célibataire","Mademoiselle",C11<>"m","Madame") -> Monsieur | J11: 1050 | K11: =VLOOKUP(J11,Applic2_consignes!$C$13:$D$18,2,FALSE) -> Ixelles | L11: 1952-10-07 | M11: 70 | N11: E | O11: =_xlfn.IFS(M11<25,"A",M11<35,"B",M11<45,"C",M11<55,"D",M11>=55,"E") -> E | Q11: Direction | R11: =VLOOKUP(Q11,Applic2_consignes!$C$34:$D$37,2,FALSE) -> 2500
A12: Cléssoulaporte | B12: Djamila | C12: f | D12: Madame | E12: =_xlfn.IFS(C12="f","Madame",C12="m","Monsieur") -> Madame | F12: Madame | G12: Marié(e) | H12: Madame | I12: =_xlfn.IFS(C12="m","Monsieur",G12="Célibataire","Mademoiselle",C12<>"m","Madame") -> Madame | J12: 1050 | K12: =VLOOKUP(J12,Applic2_consignes!$C$13:$D$18,2,FALSE) -> Ixelles | L12: 1989-09-07 | M12: 33 | N12: B | O12: =_xlfn.IFS(M12<25,"A",M12<35,"B",M12<45,"C",M12<55,"D",M12>=55,"E") -> B | Q12: Personnel | R12: =VLOOKUP(Q12,Applic2_consignes!$C$34:$D$37,2,FALSE) -> 1600
A13: Noux | B13: Marion | C13: f | D13: Madame | E13: =_xlfn.IFS(C13="f","Madame",C13="m","Monsieur") -> Madame | F13: Madame | G13: Divorcé(e) | H13: Madame | I13: =_xlfn.IFS(C13="m","Monsieur",G13="Célibataire","Mademoiselle",C13<>"m","Madame") -> Madame | J13: 1050 | K13: =VLOOKUP(J13,Applic2_consignes!$C$13:$D$18,2,FALSE) -> Ixelles | L13: 1978-12-30 | M13: 44 | N13: C | O13: =_xlfn.IFS(M13<25,"A",M13<35,"B",M13<45,"C",M13<55,"D",M13>=55,"E") -> C | Q13: Secrétariat | R13: =VLOOKUP(Q13,Applic2_consignes!$C$34:$D$37,2,FALSE) -> 1700
A14: Ouzi | B14: Jacques | C14: m | D14: Monsieur | E14: =_xlfn.IFS(C14="f","Madame",C14="m","Monsieur") -> Monsieur | F14: Monsieur | G14: Célibataire | H14: Monsieur | I14: =_xlfn.IFS(C14="m","Monsieur",G14="Célibataire","Mademoiselle",C14<>"m","Madame") -> Monsieur | J14: 1000 | K14: =VLOOKUP(J14,Applic2_consignes!$C$13:$D$18,2,FALSE) -> Bruxelles | L14: 1969-02-28 | M14: 54 | N14: D | O14: =_xlfn.IFS(M14<25,"A",M14<35,"B",M14<45,"C",M14<55,"D",M14>=55,"E") -> D | Q14: Personnel | R14: =VLOOKUP(Q14,Applic2_consignes!$C$34:$D$37,2,FALSE) -> 1600
A15: Stiké | B15: Sophie | C15: f | D15: Madame | E15: =_xlfn.IFS(C15="f","Madame",C15="m","Monsieur") -> Madame | F15: Madame | G15: Divorcé(e) | H15: Madame | I15: =_xlfn.IFS(C15="m","Monsieur",G15="Célibataire","Mademoiselle",C15<>"m","Madame") -> Madame | J15: 1070 | K15: =VLOOKUP(J15,Applic2_consignes!$C$13:$D$18,2,FALSE) -> Anderlecht | L15: 1998-04-04 | M15: 25 | N15: B | O15: =_xlfn.IFS(M15<25,"A",M15<35,"B",M15<45,"C",M15<55,"D",M15>=55,"E") -> B | Q15: Secrétariat | R15: =VLOOKUP(Q15,Applic2_consignes!$C$34:$D$37,2,FALSE) -> 1700
A16: Tare | B16: Guy | C16: m | D16: Monsieur | E16: =_xlfn.IFS(C16="f","Madame",C16="m","Monsieur") -> Monsieur | F16: Monsieur | G16: Divorcé(e) | H16: Monsieur | I16: =_xlfn.IFS(C16="m","Monsieur",G16="Célibataire","Mademoiselle",C16<>"m","Madame") -> Monsieur | J16: 1070 | K16: =VLOOKUP(J16,Applic2_consignes!$C$13:$D$18,2,FALSE) -> Anderlecht | L16: 1960-08-07 | M16: 62 | N16: E | O16: =_xlfn.IFS(M16<25,"A",M16<35,"B",M16<45,"C",M16<55,"D",M16>=55,"E") -> E | Q16: Informatique | R16: =VLOOKUP(Q16,Applic2_consignes!$C$34:$D$37,2,FALSE) -> 1900
A17: Vaisselle | B17: Aude | C17: f | D17: Madame | E17: =_xlfn.IFS(C17="f","Madame",C17="m","Monsieur") -> Madame | F17: Madame | G17: Marié(e) | H17: Madame | I17: =_xlfn.IFS(C17="m","Monsieur",G17="Célibataire","Mademoiselle",C17<>"m","Madame") -> Madame | J17: 1070 | K17: =VLOOKUP(J17,Applic2_consignes!$C$13:$D$18,2,FALSE) -> Anderlecht | L17: 1966-06-06 | M17: 57 | N17: E | O17: =_xlfn.IFS(M17<25,"A",M17<35,"B",M17<45,"C",M17<55,"D",M17>=55,"E") -> E | Q17: Secrétariat | R17: =VLOOKUP(Q17,Applic2_consignes!$C$34:$D$37,2,FALSE) -> 1700
A18: Zetofrais | B18: Mélanie | C18: f | D18: Madame | E18: =_xlfn.IFS(C18="f","Madame",C18="m","Monsieur") -> Madame | F18: Madame | G18: Célibataire | H18: Mademoiselle | I18: =_xlfn.IFS(C18="m","Monsieur",G18="Célibataire","Mademoiselle",C18<>"m","Madame") -> Mademoiselle | J18: 1070 | K18: =VLOOKUP(J18,Applic2_consignes!$C$13:$D$18,2,FALSE) -> Anderlecht | L18: 1978-11-25 | M18: 44 | N18: C | O18: =_xlfn.IFS(M18<25,"A",M18<35,"B",M18<45,"C",M18<55,"D",M18>=55,"E") -> C | Q18: Direction | R18: =VLOOKUP(Q18,Applic2_consignes!$C$34:$D$37,2,FALSE) -> 2500
A19: Touille | B19: Sasha | C19: m | D19: Monsieur | E19: =_xlfn.IFS(C19="f","Madame",C19="m","Monsieur") -> Monsieur | F19: Monsieur | G19: Célibataire | H19: Monsieur | I19: =_xlfn.IFS(C19="m","Monsieur",G19="Célibataire","Mademoiselle",C19<>"m","Madame") -> Monsieur | J19: 1070 | K19: =VLOOKUP(J19,Applic2_consignes!$C$13:$D$18,2,FALSE) -> Anderlecht | L19: 2000-10-30 | M19: 22 | N19: A | O19: =_xlfn.IFS(M19<25,"A",M19<35,"B",M19<45,"C",M19<55,"D",M19>=55,"E") -> A | Q19: Personnel | R19: =VLOOKUP(Q19,Applic2_consignes!$C$34:$D$37,2,FALSE) -> 1600
A20: Proviste | B20: Alain | C20: m | D20: Monsieur | E20: =_xlfn.IFS(C20="f","Madame",C20="m","Monsieur") -> Monsieur | F20: Monsieur | G20: Marié(e) | H20: Monsieur | I20: =_xlfn.IFS(C20="m","Monsieur",G20="Célibataire","Mademoiselle",C20<>"m","Madame") -> Monsieur | J20: 1030 | K20: =VLOOKUP(J20,Applic2_consignes!$C$13:$D$18,2,FALSE) -> Schaerbeek | L20: 1959-09-09 | M20: 63 | N20: E | O20: =_xlfn.IFS(M20<25,"A",M20<35,"B",M20<45,"C",M20<55,"D",M20>=55,"E") -> E | Q20: Personnel | R20: =VLOOKUP(Q20,Applic2_consignes!$C$34:$D$37,2,FALSE) -> 1600
A21: Peulaporte | B21: Firmin | C21: m | D21: Monsieur | E21: =_xlfn.IFS(C21="f","Madame",C21="m","Monsieur") -> Monsieur | F21: Monsieur | G21: Divorcé(e) | H21: Monsieur | I21: =_xlfn.IFS(C21="m","Monsieur",G21="Célibataire","Mademoiselle",C21<>"m","Madame") -> Monsieur | J21: 1040 | K21: =VLOOKUP(J21,Applic2_consignes!$C$13:$D$18,2,FALSE) -> Etterbeek | L21: 1993-07-01 | M21: 29 | N21: B | O21: =_xlfn.IFS(M21<25,"A",M21<35,"B",M21<45,"C",M21<55,"D",M21>=55,"E") -> B | Q21: Informatique | R21: =VLOOKUP(Q21,Applic2_consignes!$C$34:$D$37,2,FALSE) -> 1900
A22: Unetitlaine | B22: Jérémy | C22: m | D22: Monsieur | E22: =_xlfn.IFS(C22="f","Madame",C22="m","Monsieur") -> Monsieur | F22: Monsieur | G22: Marié(e) | H22: Monsieur | I22: =_xlfn.IFS(C22="m","Monsieur",G22="Célibataire","Mademoiselle",C22<>"m","Madame") -> Monsieur | J22: 1030 | K22: =VLOOKUP(J22,Applic2_consignes!$C$13:$D$18,2,FALSE) -> Schaerbeek | L22: 1983-06-09 | M22: 40 | N22: C | O22: =_xlfn.IFS(M22<25,"A",M22<35,"B",M22<45,"C",M22<55,"D",M22>=55,"E") -> C | Q22: Informatique | R22: =VLOOKUP(Q22,Applic2_consignes!$C$34:$D$37,2,FALSE) -> 1900
A25: (*) | B25: 1- | C25: Avec SI | M25: (***) | N25: 1- | O25: Avec SI
C27: SI Sexe = "f" | O27: SI Age < 25
C28: ALORS "MADAME" | O28: ALORS "A"
C29: SINON "MONSIEUR" | O29: SINON SI Age < 35
O30: ALORS "B"
B31: 2- | C31: Avec SI.CONDITIONS | O31: SINON SI Age < 45
O32: ALORS "C"
C33: SI Sexe = "f" ALORS "Madame" | O33: SINON SI Age < 55
C34: SI Sexe = "m" ALORS "Monsieur" | O34: ALORS "D"
O35: SINON "E"
B36: 3- | C36: Avec une rechercheV
N37: 2- | O37: Avec SI.CONDITIONS
C38: f | D38: Madame
C39: m | D39: Monsieur | O39: Si Age < 25 ALORS "A"
O40: Si Age < 35 ALORS "B"
A41: (**) | B41: Selon le "départ" choisi, la logique peut être +/- simple. | O41: Si Age < 45 ALORS "C"
B42: Ici sera traité le cas le plus complexe de façon à être capable d'écrire ce cas. | O42: Si Age < 55 ALORS "D"
B43: Les différents cas peuvent être résolu avec un SI (1-) ou un SI.Conditions (2-) | O43: Si Age >= 55 ALORS "E"
B45: 1- | C45: Avec SI
C49: SI Sexe = "f" ET Etat civil = "Marié(e)" OU "Divorcé(e)"
C50: ALORS "Madame"
C51: SINON SI Sexe = "f" ET Etat civil = "Célibataire"
C52: ALORS "Mademoiselle"
C53: SINON "Monsieur"
C55: OU
C57: SI Sexe = "m"
C58: ALORS "Monsieur"
C59: SINON SI Etat civil = "Célibataire"
C60: ALORS "Mademoiselle"
C61: SINON "Madame"
B63: 2- | C63: Avec SI.CONDITIONS
C65: SI Sexe = "f" ET Etat civil = "Marié(e)" OU "Divorcé(e)" ALORS "Madame"
C66: SI Sexe = "f" ET Etat civil = "Célibataire" ALORS "Mademoiselle"
C67: SI Sexe = "m" ALORS "Monsieur"
C69: OU
C71: SI Sexe = "m" ALORS "Monsieur"
C72: SI Etat civil = "Célibataire" ALORS "Mademoiselle"
C73: SI Sexe <> "m" ALORS "Madame"

Sheet Applic3
M1: Retour sommaire
B3: Lors de l'utilisation des 'SI' imbriqués, nous ne disposons que de 8 'SI'. Si les tranches été différentes (cf. ci-dessous), le problème n'aurait pas pu être résolu avec des 'SI'
B4: Ce genre de problème peut être solutionné par l'utilisation d'une 'RechercheV' par valeur proche.
B7: Ages | C7: Catégories | F7: Age | G7: Catégories
B8: <25 | C8: A | F8: 42
B9: >=25 et <30 | C9: B | F9: 28
B10: >=30 et <35 | C10: C | F10: 66
B11: >=35 et <40 | C11: D | F11: 42
B12: >=40 et <45 | C12: E | F12: 44
B13: >=45 et <50 | C13: F | F13: 32
B14: >=50 et <55 | C14: G | F14: 25
B15: >=55 et <60 | C15: H | F15: 37
B16: >=60 et <65 | C16: I | F16: 52
B17: >=65 et <70 | C17: J | F17: 55
B18: >=70 | C18: K | F18: 48
F19: 29
F20: 39
F21: 49
F22: 47
F23: 41
F24: 29
F25: 25
F26: 48
F27: 42
F28: 24

Sheet Applic3_corrigé (hidden)
B3: Lors de l'utilisation des 'SI' imbriqués, nous ne disposons que de 8 'SI'. Si les tranches été différentes (cf. ci-dessous), le problème n'aurait pas pu être résolu avec des 'SI'
B4: Ce genre de problème peut être solutionné par l'utilisation d'une 'RechercheV' par valeur proche.
B7: Ages | D7: Catégories | F7: Age | G7: Catégories
B8: <25 | C8: 0 | D8: A | F8: 42 | G8: =VLOOKUP(F8,$C$8:$D$18,2,TRUE) -> E
B9: >=25 et <30 | C9: 25 | D9: B | F9: 28 | G9: =VLOOKUP(F9,$C$8:$D$18,2,TRUE) -> B
B10: >=30 et <35 | C10: 30 | D10: C | F10: 66 | G10: J
B11: >=35 et <40 | C11: 35 | D11: D | F11: 42 | G11: E
B12: >=40 et <45 | C12: 40 | D12: E | F12: 44 | G12: E
B13: >=45 et <50 | C13: 45 | D13: F | F13: 32 | G13: C
B14: >=50 et <55 | C14: 50 | D14: G | F14: 25 | G14: B
B15: >=55 et <60 | C15: 55 | D15: H | F15: 37 | G15: D
B16: >=60 et <65 | C16: 60 | D16: I | F16: 52 | G16: G
B17: >=65 et <70 | C17: 65 | D17: J | F17: 55 | G17: H
B18: >=70 | C18: 70 | D18: K | F18: 48 | G18: F
F19: 29 | G19: B
F20: 39 | G20: D
F21: 49 | G21: F
F22: 47 | G22: F
F23: 41 | G23: E
F24: 29 | G24: B
F25: 25 | G25: B
F26: 48 | G26: F
F27: 42 | G27: E
F28: 24 | G28: A

Sheet Applic4
A1: Nom | B1: Prénom | C1: Sexe | D1: Etat civil | E1: Ville | F1: CP (Equiv) | G1: CP (Index) | H1: CP (RechercheX) | L1: Retour sommaire
A2: Bistrot | B2: Alonso | C2: m | D2: Marié(e) | E2: Schaerbeek
A3: Bijoba | B3: Jo | C3: m | D3: Marié(e) | E3: Bruxelles | J3: 1) | K3: Via la liste ci-dessous, choisir une personne et obtenir son état civil dans la cellule à côté
A4: Covert | B4: Harry | C4: m | D4: Divorcé(e) | E4: Bruxelles
A5: Culaire | B5: Laury | C5: m | D5: Marié(e) | E5: Schaerbeek | L5: Choix de la personne : | M5: Covert
A6: Deuf | B6: John | C6: m | D6: Célibataire | E6: Anderlecht
A7: Foupasune | B7: Jean | C7: m | D7: Célibataire | E7: Anderlecht | L7: Son état civil : | M7: =VLOOKUP(M5,A2:D22,4,FALSE) -> Divorcé(e)
A8: Lairbon | B8: Oussama | C8: m | D8: Marié(e) | E8: Schaerbeek
A9: Menvussa | B9: Gérard | C9: m | D9: Célibataire | E9: Ixelles | K9: => Pour les noms en double, quel que soit le nom choisi, la RechercheV renvoit toujours le premier retrouvé
A10: Lalalalalalala | B10: Starsky | C10: m | D10: Célibataire | E10: Saint-Gilles
A11: Lalalalalalala | B11: Hutch | C11: m | D11: Divorcé(e) | E11: Ixelles | K11: Solution : | L11: Rendre la valeur que nous recherchons unique et faire la recherche sur cette valeur unique
A12: Cléssoulaporte | B12: Djamila | C12: f | D12: Marié(e) | E12: Ixelles
A13: Noux | B13: Marion | C13: f | D13: Divorcé(e) | E13: Ixelles | J13: 2) | K13: A l'aide d'une recherche, obtenir le CP qui correspond à la ville
A14: Ouzi | B14: Jacques | C14: m | D14: Célibataire | E14: Bruxelles
A15: Stiké | B15: Sophie | C15: f | D15: Divorcé(e) | E15: Anderlecht | L15: CP | M15: Ville
A16: Tare | B16: Guy | C16: m | D16: Divorcé(e) | E16: Anderlecht | L16: 1030 | M16: Schaerbeek
A17: Vaisselle | B17: Aude | C17: f | D17: Marié(e) | E17: Anderlecht | L17: 1000 | M17: Bruxelles
A18: Zetofrais | B18: Mélanie | C18: f | D18: Célibataire | E18: Anderlecht | L18: 1070 | M18: Anderlecht
A19: Touille | B19: Sasha | C19: m | D19: Célibataire | E19: Anderlecht | L19: 1050 | M19: Ixelles
A20: Proviste | B20: Alain | C20: m | D20: Marié(e) | E20: Schaerbeek | L20: 1060 | M20: Saint-Gilles
A21: Peulaporte | B21: Firmin | C21: m | D21: Divorcé(e) | E21: Etterbeek | L21: 1040 | M21: Etterbeek
A22: Unetitlaine | B22: Jérémy | C22: m | D22: Marié(e) | E22: Schaerbeek
K23: => Problème rencontré : via une RechercheV, la valeur cherchée doit absolument se trouver dans la 1ère colonne du tableau
K25: Solution 1 : | L25: Reconstruire le tableau dans le bon sens
K27: Solution 2 : | L27: Utiliser les fonctions EQUIV et INDEX
K29: Solution 3 : | L29: Utiliser la fonction RechercheX

Sheet Applic4_corrigé (hidden)
A1: Nom | B1: Prénom | C1: Nom & Prénom | D1: Sexe | E1: Etat civil | F1: Ville | G1: CP (Equiv) | H1: CP (Index) | I1: CP (RechercheX) | M1: Retour sommaire
A2: Bistrot | B2: Alonso | C2: =A2&" "&B2 -> Bistrot Alonso | D2: m | E2: Marié(e) | F2: Schaerbeek | G2: =MATCH(F:F,$N$16:$N$21,0) -> 1 | H2: =INDEX($M$16:$M$21,G2) -> 1030 | I2: =_xlfn.XLOOKUP(F2,$N$16:$N$21,$M$16:$M$21,,0) -> 1030
A3: Bijoba | B3: Jo | C3: =A3&" "&B3 -> Bijoba Jo | D3: m | E3: Marié(e) | F3: Bruxelles | G3: =MATCH(F:F,$N$16:$N$21,0) -> 2 | H3: =INDEX($M$16:$M$21,G3) -> 1000 | I3: =_xlfn.XLOOKUP(F3,$N$16:$N$21,$M$16:$M$21,,0) -> 1000 | K3: 1) | L3: Via la liste ci-dessous, choisir une personne et obtenir son état civil dans la cellule à côté
A4: Covert | B4: Harry | C4: Covert Harry | D4: m | E4: Divorcé(e) | F4: Bruxelles | G4: 2 | H4: =INDEX($M$16:$M$21,G4) -> 1000 | I4: 1000
A5: Culaire | B5: Laury | C5: Culaire Laury | D5: m | E5: Marié(e) | F5: Schaerbeek | G5: 1 | H5: =INDEX($M$16:$M$21,G5) -> 1030 | I5: 1030 | M5: Choix de la personne : | N5: Lalalalalalala Hutch
A6: Deuf | B6: John | C6: Deuf John | D6: m | E6: Célibataire | F6: Anderlecht | G6: 3 | H6: =INDEX($M$16:$M$21,G6) -> 1070 | I6: 1070
A7: Foupasune | B7: Jean | C7: Foupasune Jean | D7: m | E7: Célibataire | F7: Anderlecht | G7: 3 | H7: =INDEX($M$16:$M$21,G7) -> 1070 | I7: 1070 | M7: Son état civil : | N7: =VLOOKUP(N5,C2:E22,3,FALSE) -> Divorcé(e)
A8: Lairbon | B8: Oussama | C8: Lairbon Oussama | D8: m | E8: Marié(e) | F8: Schaerbeek | G8: 1 | H8: =INDEX($M$16:$M$21,G8) -> 1030 | I8: 1030
A9: Menvussa | B9: Gérard | C9: Menvussa Gérard | D9: m | E9: Célibataire | F9: Ixelles | G9: 4 | H9: =INDEX($M$16:$M$21,G9) -> 1050 | I9: 1050 | L9: => Pour les noms en double, quel que soit le nom choisi, la RechercheV renvoit toujours le premier retrouvé
A10: Lalalalalalala | B10: Starsky | C10: Lalalalalalala Starsky | D10: m | E10: Célibataire | F10: Saint-Gilles | G10: 5 | H10: =INDEX($M$16:$M$21,G10) -> 1060 | I10: 1060
A11: Lalalalalalala | B11: Hutch | C11: Lalalalalalala Hutch | D11: m | E11: Divorcé(e) | F11: Ixelles | G11: 4 | H11: =INDEX($M$16:$M$21,G11) -> 1050 | I11: 1050 | L11: Solution : | M11: Rendre la valeur que nous recherchons unique et faire la recherche sur cette valeur unique
A12: Cléssoulaporte | B12: Djamila | C12: Cléssoulaporte Djamila | D12: f | E12: Marié(e) | F12: Ixelles | G12: 4 | H12: =INDEX($M$16:$M$21,G12) -> 1050 | I12: 1050
A13: Noux | B13: Marion | C13: Noux Marion | D13: f | E13: Divorcé(e) | F13: Ixelles | G13: 4 | H13: =INDEX($M$16:$M$21,G13) -> 1050 | I13: 1050 | K13: 2) | L13: A l'aide d'une recherche, obtenir le CP qui correspond à la ville
A14: Ouzi | B14: Jacques | C14: Ouzi Jacques | D14: m | E14: Célibataire | F14: Bruxelles | G14: 2 | H14: =INDEX($M$16:$M$21,G14) -> 1000 | I14: 1000
A15: Stiké | B15: Sophie | C15: Stiké Sophie | D15: f | E15: Divorcé(e) | F15: Anderlecht | G15: 3 | H15: =INDEX($M$16:$M$21,G15) -> 1070 | I15: 1070 | M15: CP | N15: Ville
A16: Tare | B16: Guy | C16: Tare Guy | D16: m | E16: Divorcé(e) | F16: Anderlecht | G16: 3 | H16: =INDEX($M$16:$M$21,G16) -> 1070 | I16: 1070 | M16: 1030 | N16: Schaerbeek
A17: Vaisselle | B17: Aude | C17: Vaisselle Aude | D17: f | E17: Marié(e) | F17: Anderlecht | G17: 3 | H17: =INDEX($M$16:$M$21,G17) -> 1070 | I17: 1070 | M17: 1000 | N17: Bruxelles
A18: Zetofrais | B18: Mélanie | C18: Zetofrais Mélanie | D18: f | E18: Célibataire | F18: Anderlecht | G18: 3 | H18: =INDEX($M$16:$M$21,G18) -> 1070 | I18: 1070 | M18: 1070 | N18: Anderlecht
A19: Touille | B19: Sasha | C19: Touille Sasha | D19: m | E19: Célibataire | F19: Anderlecht | G19: 3 | H19: =INDEX($M$16:$M$21,G19) -> 1070 | I19: 1070 | M19: 1050 | N19: Ixelles
A20: Proviste | B20: Alain | C20: Proviste Alain | D20: m | E20: Marié(e) | F20: Schaerbeek | G20: 1 | H20: =INDEX($M$16:$M$21,G20) -> 1030 | I20: 1030 | M20: 1060 | N20: Saint-Gilles
A21: Peulaporte | B21: Firmin | C21: Peulaporte Firmin | D21: m | E21: Divorcé(e) | F21: Etterbeek | G21: 6 | H21: =INDEX($M$16:$M$21,G21) -> 1040 | I21: 1040 | M21: 1040 | N21: Etterbeek
A22: Unetitlaine | B22: Jérémy | C22: Unetitlaine Jérémy | D22: m | E22: Marié(e) | F22: Schaerbeek | G22: 1 | H22: =INDEX($M$16:$M$21,G22) -> 1030 | I22: 1030
L23: => Problème rencontré : via une RechercheV, la valeur cherchée doit absolument se trouver dans la 1ère colonne du tableau
L25: Solution 1 : | M25: Reconstruire le tableau dans le bon sens
L27: Solution 2 : | M27: Utiliser les fonctions EQUIV et INDEX
L29: Solution 3 : | M29: Utiliser la fonction RechercheX

Sheet Filtre1_corrigé (hidden)
A1: Filtres automatiques
A3: A l'aide des filtres automatiques, afficher les employés dont le nom commence par un 'p'
A6: Nom | B6: Prénom | C6: Sexe | D6: Etat civil | E6: Date de naissance | F6: Age | G6: Tranches | H6: Services | I6: Salaires Minimum | J6: Salaires
A7: Bistrot | B7: Alonso | C7: m | D7: Marié(e) | E7: 1966-01-17 | F7: =DATEDIF(E7,TODAY(),"y") -> 57 | G7: =IF(F7<25,0,IF(F7<35,1,IF(F7<45,2,IF(F7<55,3,4)))) -> 4 | H7: Informatique | I7: =VLOOKUP(H7,Applic2_consignes!$C$34:$D$37,2,FALSE) -> 1900 | J7: =I7+5%*G7*I7 -> 2280
A8: Bijoba | B8: Jo | C8: m | D8: Marié(e) | E8: 1980-03-15 | F8: 43 | G8: 2 | H8: Direction | I8: =VLOOKUP(H8,Applic2_consignes!$C$34:$D$37,2,FALSE) -> 2500 | J8: 2750
A9: Covert | B9: Harry | C9: m | D9: Divorcé(e) | E9: 1942-02-10 | F9: 81 | G9: 4 | H9: Personnel | I9: =VLOOKUP(H9,Applic2_consignes!$C$34:$D$37,2,FALSE) -> 1600 | J9: 1920
A10: Culaire | B10: Laury | C10: m | D10: Marié(e) | E10: 1965-05-05 | F10: 58 | G10: 4 | H10: Personnel | I10: =VLOOKUP(H10,Applic2_consignes!$C$34:$D$37,2,FALSE) -> 1600 | J10: 1920
A11: Deuf | B11: John | C11: m | D11: Célibataire | E11: 1963-09-08 | F11: 59 | G11: 4 | H11: Informatique | I11: =VLOOKUP(H11,Applic2_consignes!$C$34:$D$37,2,FALSE) -> 1900 | J11: 2280
A12: Foupasune | B12: Jean | C12: m | D12: Célibataire | E12: 1975-08-07 | F12: 47 | G12: 3 | H12: Personnel | I12: =VLOOKUP(H12,Applic2_consignes!$C$34:$D$37,2,FALSE) -> 1600 | J12: 1840
A13: Lairbon | B13: Oussama | C13: m | D13: Marié(e) | E13: 1983-02-08 | F13: 40 | G13: 2 | H13: Personnel | I13: =VLOOKUP(H13,Applic2_consignes!$C$34:$D$37,2,FALSE) -> 1600 | J13: 1760
A14: Menvussa | B14: Gérard | C14: m | D14: Célibataire | E14: 1970-12-04 | F14: 52 | G14: 3 | H14: Informatique | I14: =VLOOKUP(H14,Applic2_consignes!$C$34:$D$37,2,FALSE) -> 1900 | J14: 2185
A15: Lalalalalalala | B15: Starsky | C15: m | D15: Célibataire | E15: 1955-07-08 | F15: 67 | G15: 4 | H15: Personnel | I15: =VLOOKUP(H15,Applic2_consignes!$C$34:$D$37,2,FALSE) -> 1600 | J15: 1920
A16: Lalalalalalala | B16: Hutch | C16: m | D16: Divorcé(e) | E16: 1952-10-07 | F16: 70 | G16: 4 | H16: Direction | I16: =VLOOKUP(H16,Applic2_consignes!$C$34:$D$37,2,FALSE) -> 2500 | J16: 3000
A17: Cléssoulaporte | B17: Djamila | C17: f | D17: Marié(e) | E17: 1959-09-07 | F17: 63 | G17: 4 | H17: Personnel | I17: =VLOOKUP(H17,Applic2_consignes!$C$34:$D$37,2,FALSE) -> 1600 | J17: 1920
A18: Noux | B18: Marion | C18: f | D18: Divorcé(e) | E18: 1978-12-30 | F18: 44 | G18: 2 | H18: Secrétariat | I18: =VLOOKUP(H18,Applic2_consignes!$C$34:$D$37,2,FALSE) -> 1700 | J18: 1870
A19: Ouzi | B19: Jacques | C19: m | D19: Célibataire | E19: 1969-02-28 | F19: 54 | G19: 3 | H19: Personnel | I19: =VLOOKUP(H19,Applic2_consignes!$C$34:$D$37,2,FALSE) -> 1600 | J19: 1840
A20: Stiké | B20: Sophie | C20: f | D20: Divorcé(e) | E20: 1959-04-04 | F20: 64 | G20: 4 | H20: Secrétariat | I20: =VLOOKUP(H20,Applic2_consignes!$C$34:$D$37,2,FALSE) -> 1700 | J20: 2040
A21: Tare | B21: Guy | C21: m | D21: Divorcé(e) | E21: 1960-08-07 | F21: 62 | G21: 4 | H21: Informatique | I21: =VLOOKUP(H21,Applic2_consignes!$C$34:$D$37,2,FALSE) -> 1900 | J21: 2280
A22: Vaisselle | B22: Aude | C22: f | D22: Marié(e) | E22: 1966-06-06 | F22: 57 | G22: 4 | H22: Secrétariat | I22: =VLOOKUP(H22,Applic2_consignes!$C$34:$D$37,2,FALSE) -> 1700 | J22: 2040
A23: Zetofrais | B23: Mélanie | C23: f | D23: Célibataire | E23: 1978-11-25 | F23: 44 | G23: 2 | H23: Direction | I23: =VLOOKUP(H23,Applic2_consignes!$C$34:$D$37,2,FALSE) -> 2500 | J23: 2750
A24: Touille | B24: Sasha | C24: m | D24: Célibataire | E24: 1982-10-30 | F24: 40 | G24: 2 | H24: Personnel | I24: =VLOOKUP(H24,Applic2_consignes!$C$34:$D$37,2,FALSE) -> 1600 | J24: 1760
A25: Proviste | B25: Alain | C25: m | D25: Marié(e) | E25: 1959-09-09 | F25: 63 | G25: 4 | H25: Personnel | I25: =VLOOKUP(H25,Applic2_consignes!$C$34:$D$37,2,FALSE) -> 1600 | J25: 1920
A26: Peulaporte | B26: Firmin | C26: m | D26: Divorcé(e) | E26: 1965-07-01 | F26: 57 | G26: 4 | H26: Informatique | I26: =VLOOKUP(H26,Applic2_consignes!$C$34:$D$37,2,FALSE) -> 1900 | J26: 2280
A27: Unetitlaine | B27: Jérémy | C27: m | D27: Marié(e) | E27: 1983-06-09 | F27: 40 | G27: 2 | H27: Informatique | I27: =VLOOKUP(H27,Applic2_consignes!$C$34:$D$37,2,FALSE) -> 1900 | J27: 2090

Sheet Filtre2_corrigé (hidden)
A1: Filtres automatiques
A3: A l'aide des filtres automatiques, afficher les employés du secrétariat et de la direction
A6: Nom | B6: Prénom | C6: Sexe | D6: Etat civil | E6: Date de naissance | F6: Age | G6: Tranches | H6: Services | I6: Salaires Minimum | J6: Salaires
A7: Bistrot | B7: Alonso | C7: m | D7: Marié(e) | E7: 1966-01-17 | F7: =DATEDIF(E7,TODAY(),"y") -> 57 | G7: =IF(F7<25,0,IF(F7<35,1,IF(F7<45,2,IF(F7<55,3,4)))) -> 4 | H7: Informatique | I7: =VLOOKUP(H7,Applic2_consignes!$C$34:$D$37,2,FALSE) -> 1900 | J7: =I7+5%*G7*I7 -> 2280
A8: Bijoba | B8: Jo | C8: m | D8: Marié(e) | E8: 1980-03-15 | F8: 43 | G8: 2 | H8: Direction | I8: =VLOOKUP(H8,Applic2_consignes!$C$34:$D$37,2,FALSE) -> 2500 | J8: 2750
A9: Covert | B9: Harry | C9: m | D9: Divorcé(e) | E9: 1942-02-10 | F9: 81 | G9: 4 | H9: Personnel | I9: =VLOOKUP(H9,Applic2_consignes!$C$34:$D$37,2,FALSE) -> 1600 | J9: 1920
A10: Culaire | B10: Laury | C10: m | D10: Marié(e) | E10: 1965-05-05 | F10: 58 | G10: 4 | H10: Personnel | I10: =VLOOKUP(H10,Applic2_consignes!$C$34:$D$37,2,FALSE) -> 1600 | J10: 1920
A11: Deuf | B11: John | C11: m | D11: Célibataire | E11: 1963-09-08 | F11: 59 | G11: 4 | H11: Informatique | I11: =VLOOKUP(H11,Applic2_consignes!$C$34:$D$37,2,FALSE) -> 1900 | J11: 2280
A12: Foupasune | B12: Jean | C12: m | D12: Célibataire | E12: 1975-08-07 | F12: 47 | G12: 3 | H12: Personnel | I12: =VLOOKUP(H12,Applic2_consignes!$C$34:$D$37,2,FALSE) -> 1600 | J12: 1840
A13: Lairbon | B13: Oussama | C13: m | D13: Marié(e) | E13: 1983-02-08 | F13: 40 | G13: 2 | H13: Personnel | I13: =VLOOKUP(H13,Applic2_consignes!$C$34:$D$37,2,FALSE) -> 1600 | J13: 1760
A14: Menvussa | B14: Gérard | C14: m | D14: Célibataire | E14: 1970-12-04 | F14: 52 | G14: 3 | H14: Informatique | I14: =VLOOKUP(H14,Applic2_consignes!$C$34:$D$37,2,FALSE) -> 1900 | J14: 2185
A15: Lalalalalalala | B15: Starsky | C15: m | D15: Célibataire | E15: 1955-07-08 | F15: 67 | G15: 4 | H15: Personnel | I15: =VLOOKUP(H15,Applic2_consignes!$C$34:$D$37,2,FALSE) -> 1600 | J15: 1920
A16: Lalalalalalala | B16: Hutch | C16: m | D16: Divorcé(e) | E16: 1952-10-07 | F16: 70 | G16: 4 | H16: Direction | I16: =VLOOKUP(H16,Applic2_consignes!$C$34:$D$37,2,FALSE) -> 2500 | J16: 3000
A17: Cléssoulaporte | B17: Djamila | C17: f | D17: Marié(e) | E17: 1959-09-07 | F17: 63 | G17: 4 | H17: Personnel | I17: =VLOOKUP(H17,Applic2_consignes!$C$34:$D$37,2,FALSE) -> 1600 | J17: 1920
A18: Noux | B18: Marion | C18: f | D18: Divorcé(e) | E18: 1978-12-30 | F18: 44 | G18: 2 | H18: Secrétariat | I18: =VLOOKUP(H18,Applic2_consignes!$C$34:$D$37,2,FALSE) -> 1700 | J18: 1870
A19: Ouzi | B19: Jacques | C19: m | D19: Célibataire | E19: 1969-02-28 | F19: 54 | G19: 3 | H19: Personnel | I19: =VLOOKUP(H19,Applic2_consignes!$C$34:$D$37,2,FALSE) -> 1600 | J19: 1840
A20: Stiké | B20: Sophie | C20: f | D20: Divorcé(e) | E20: 1959-04-04 | F20: 64 | G20: 4 | H20: Secrétariat | I20: =VLOOKUP(H20,Applic2_consignes!$C$34:$D$37,2,FALSE) -> 1700 | J20: 2040
A21: Tare | B21: Guy | C21: m | D21: Divorcé(e) | E21: 1960-08-07 | F21: 62 | G21: 4 | H21: Informatique | I21: =VLOOKUP(H21,Applic2_consignes!$C$34:$D$37,2,FALSE) -> 1900 | J21: 2280
A22: Vaisselle | B22: Aude | C22: f | D22: Marié(e) | E22: 1966-06-06 | F22: 57 | G22: 4 | H22: Secrétariat | I22: =VLOOKUP(H22,Applic2_consignes!$C$34:$D$37,2,FALSE) -> 1700 | J22: 2040
A23: Zetofrais | B23: Mélanie | C23: f | D23: Célibataire | E23: 1978-11-25 | F23: 44 | G23: 2 | H23: Direction | I23: =VLOOKUP(H23,Applic2_consignes!$C$34:$D$37,2,FALSE) -> 2500 | J23: 2750
A24: Touille | B24: Sasha | C24: m | D24: Célibataire | E24: 1982-10-30 | F24: 40 | G24: 2 | H24: Personnel | I24: =VLOOKUP(H24,Applic2_consignes!$C$34:$D$37,2,FALSE) -> 1600 | J24: 1760
A25: Proviste | B25: Alain | C25: m | D25: Marié(e) | E25: 1959-09-09 | F25: 63 | G25: 4 | H25: Personnel | I25: =VLOOKUP(H25,Applic2_consignes!$C$34:$D$37,2,FALSE) -> 1600 | J25: 1920
A26: Peulaporte | B26: Firmin | C26: m | D26: Divorcé(e) | E26: 1965-07-01 | F26: 57 | G26: 4 | H26: Informatique | I26: =VLOOKUP(H26,Applic2_consignes!$C$34:$D$37,2,FALSE) -> 1900 | J26: 2280
A27: Unetitlaine | B27: Jérémy | C27: m | D27: Marié(e) | E27: 1983-06-09 | F27: 40 | G27: 2 | H27: Informatique | I27: =VLOOKUP(H27,Applic2_consignes!$C$34:$D$37,2,FALSE) -> 1900 | J27: 2090

Sheet Filtre3_corrigé (hidden)
A1: Filtres automatiques
A3: A l'aide des filtres automatiques, afficher les employés nés entre 1965 et 1975
A6: Nom | B6: Prénom | C6: Sexe | D6: Etat civil | E6: Date de naissance | F6: Age | G6: Tranches | H6: Services | I6: Salaires Minimum | J6: Salaires
A7: Bistrot | B7: Alonso | C7: m | D7: Marié(e) | E7: 1966-01-17 | F7: =DATEDIF(E7,TODAY(),"y") -> 57 | G7: =IF(F7<25,0,IF(F7<35,1,IF(F7<45,2,IF(F7<55,3,4)))) -> 4 | H7: Informatique | I7: =VLOOKUP(H7,Applic2_consignes!$C$34:$D$37,2,FALSE) -> 1900 | J7: =I7+5%*G7*I7 -> 2280
A8: Bijoba | B8: Jo | C8: m | D8: Marié(e) | E8: 1980-03-15 | F8: 43 | G8: 2 | H8: Direction | I8: =VLOOKUP(H8,Applic2_consignes!$C$34:$D$37,2,FALSE) -> 2500 | J8: 2750
A9: Covert | B9: Harry | C9: m | D9: Divorcé(e) | E9: 1942-02-10 | F9: 81 | G9: 4 | H9: Personnel | I9: =VLOOKUP(H9,Applic2_consignes!$C$34:$D$37,2,FALSE) -> 1600 | J9: 1920
A10: Culaire | B10: Laury | C10: m | D10: Marié(e) | E10: 1965-05-05 | F10: 58 | G10: 4 | H10: Personnel | I10: =VLOOKUP(H10,Applic2_consignes!$C$34:$D$37,2,FALSE) -> 1600 | J10: 1920
A11: Deuf | B11: John | C11: m | D11: Célibataire | E11: 1963-09-08 | F11: 59 | G11: 4 | H11: Informatique | I11: =VLOOKUP(H11,Applic2_consignes!$C$34:$D$37,2,FALSE) -> 1900 | J11: 2280
A12: Foupasune | B12: Jean | C12: m | D12: Célibataire | E12: 1975-08-07 | F12: 47 | G12: 3 | H12: Personnel | I12: =VLOOKUP(H12,Applic2_consignes!$C$34:$D$37,2,FALSE) -> 1600 | J12: 1840
A13: Lairbon | B13: Oussama | C13: m | D13: Marié(e) | E13: 1983-02-08 | F13: 40 | G13: 2 | H13: Personnel | I13: =VLOOKUP(H13,Applic2_consignes!$C$34:$D$37,2,FALSE) -> 1600 | J13: 1760
A14: Menvussa | B14: Gérard | C14: m | D14: Célibataire | E14: 1970-12-04 | F14: 52 | G14: 3 | H14: Informatique | I14: =VLOOKUP(H14,Applic2_consignes!$C$34:$D$37,2,FALSE) -> 1900 | J14: 2185
A15: Lalalalalalala | B15: Starsky | C15: m | D15: Célibataire | E15: 1955-07-08 | F15: 67 | G15: 4 | H15: Personnel | I15: =VLOOKUP(H15,Applic2_consignes!$C$34:$D$37,2,FALSE) -> 1600 | J15: 1920
A16: Lalalalalalala | B16: Hutch | C16: m | D16: Divorcé(e) | E16: 1952-10-07 | F16: 70 | G16: 4 | H16: Direction | I16: =VLOOKUP(H16,Applic2_consignes!$C$34:$D$37,2,FALSE) -> 2500 | J16: 3000
A17: Cléssoulaporte | B17: Djamila | C17: f | D17: Marié(e) | E17: 1959-09-07 | F17: 63 | G17: 4 | H17: Personnel | I17: =VLOOKUP(H17,Applic2_consignes!$C$34:$D$37,2,FALSE) -> 1600 | J17: 1920
A18: Noux | B18: Marion | C18: f | D18: Divorcé(e) | E18: 1978-12-30 | F18: 44 | G18: 2 | H18: Secrétariat | I18: =VLOOKUP(H18,Applic2_consignes!$C$34:$D$37,2,FALSE) -> 1700 | J18: 1870
A19: Ouzi | B19: Jacques | C19: m | D19: Célibataire | E19: 1969-02-28 | F19: 54 | G19: 3 | H19: Personnel | I19: =VLOOKUP(H19,Applic2_consignes!$C$34:$D$37,2,FALSE) -> 1600 | J19: 1840
A20: Stiké | B20: Sophie | C20: f | D20: Divorcé(e) | E20: 1959-04-04 | F20: 64 | G20: 4 | H20: Secrétariat | I20: =VLOOKUP(H20,Applic2_consignes!$C$34:$D$37,2,FALSE) -> 1700 | J20: 2040
A21: Tare | B21: Guy | C21: m | D21: Divorcé(e) | E21: 1960-08-07 | F21: 62 | G21: 4 | H21: Informatique | I21: =VLOOKUP(H21,Applic2_consignes!$C$34:$D$37,2,FALSE) -> 1900 | J21: 2280
A22: Vaisselle | B22: Aude | C22: f | D22: Marié(e) | E22: 1966-06-06 | F22: 57 | G22: 4 | H22: Secrétariat | I22: =VLOOKUP(H22,Applic2_consignes!$C$34:$D$37,2,FALSE) -> 1700 | J22: 2040
A23: Zetofrais | B23: Mélanie | C23: f | D23: Célibataire | E23: 1978-11-25 | F23: 44 | G23: 2 | H23: Direction | I23: =VLOOKUP(H23,Applic2_consignes!$C$34:$D$37,2,FALSE) -> 2500 | J23: 2750
A24: Touille | B24: Sasha | C24: m | D24: Célibataire | E24: 1982-10-30 | F24: 40 | G24: 2 | H24: Personnel | I24: =VLOOKUP(H24,Applic2_consignes!$C$34:$D$37,2,FALSE) -> 1600 | J24: 1760
A25: Proviste | B25: Alain | C25: m | D25: Marié(e) | E25: 1959-09-09 | F25: 63 | G25: 4 | H25: Personnel | I25: =VLOOKUP(H25,Applic2_consignes!$C$34:$D$37,2,FALSE) -> 1600 | J25: 1920
A26: Peulaporte | B26: Firmin | C26: m | D26: Divorcé(e) | E26: 1965-07-01 | F26: 57 | G26: 4 | H26: Informatique | I26: =VLOOKUP(H26,Applic2_consignes!$C$34:$D$37,2,FALSE) -> 1900 | J26: 2280
A27: Unetitlaine | B27: Jérémy | C27: m | D27: Marié(e) | E27: 1983-06-09 | F27: 40 | G27: 2 | H27: Informatique | I27: =VLOOKUP(H27,Applic2_consignes!$C$34:$D$37,2,FALSE) -> 1900 | J27: 2090

Sheet Filtre4_corrigé (hidden)
A1: Filtres automatiques
A3: A l'aide des filtres automatiques, afficher les employés de l'informatique et de la direction nés entre 1965 et 1975
A6: Nom | B6: Prénom | C6: Sexe | D6: Etat civil | E6: Date de naissance | F6: Age | G6: Tranches | H6: Services | I6: Salaires Minimum | J6: Salaires
A7: Bistrot | B7: Alonso | C7: m | D7: Marié(e) | E7: 1966-01-17 | F7: =DATEDIF(E7,TODAY(),"y") -> 57 | G7: =IF(F7<25,0,IF(F7<35,1,IF(F7<45,2,IF(F7<55,3,4)))) -> 4 | H7: Informatique | I7: =VLOOKUP(H7,Applic2_consignes!$C$34:$D$37,2,FALSE) -> 1900 | J7: =I7+5%*G7*I7 -> 2280
A8: Bijoba | B8: Jo | C8: m | D8: Marié(e) | E8: 1980-03-15 | F8: 43 | G8: 2 | H8: Direction | I8: =VLOOKUP(H8,Applic2_consignes!$C$34:$D$37,2,FALSE) -> 2500 | J8: 2750
A9: Covert | B9: Harry | C9: m | D9: Divorcé(e) | E9: 1942-02-10 | F9: 81 | G9: 4 | H9: Personnel | I9: =VLOOKUP(H9,Applic2_consignes!$C$34:$D$37,2,FALSE) -> 1600 | J9: 1920
A10: Culaire | B10: Laury | C10: m | D10: Marié(e) | E10: 1965-05-05 | F10: 58 | G10: 4 | H10: Personnel | I10: =VLOOKUP(H10,Applic2_consignes!$C$34:$D$37,2,FALSE) -> 1600 | J10: 1920
A11: Deuf | B11: John | C11: m | D11: Célibataire | E11: 1963-09-08 | F11: 59 | G11: 4 | H11: Informatique | I11: =VLOOKUP(H11,Applic2_consignes!$C$34:$D$37,2,FALSE) -> 1900 | J11: 2280
A12: Foupasune | B12: Jean | C12: m | D12: Célibataire | E12: 1975-08-07 | F12: 47 | G12: 3 | H12: Personnel | I12: =VLOOKUP(H12,Applic2_consignes!$C$34:$D$37,2,FALSE) -> 1600 | J12: 1840
A13: Lairbon | B13: Oussama | C13: m | D13: Marié(e) | E13: 1983-02-08 | F13: 40 | G13: 2 | H13: Personnel | I13: =VLOOKUP(H13,Applic2_consignes!$C$34:$D$37,2,FALSE) -> 1600 | J13: 1760
A14: Menvussa | B14: Gérard | C14: m | D14: Célibataire | E14: 1970-12-04 | F14: 52 | G14: 3 | H14: Informatique | I14: =VLOOKUP(H14,Applic2_consignes!$C$34:$D$37,2,FALSE) -> 1900 | J14: 2185
A15: Lalalalalalala | B15: Starsky | C15: m | D15: Célibataire | E15: 1955-07-08 | F15: 67 | G15: 4 | H15: Personnel | I15: =VLOOKUP(H15,Applic2_consignes!$C$34:$D$37,2,FALSE) -> 1600 | J15: 1920
A16: Lalalalalalala | B16: Hutch | C16: m | D16: Divorcé(e) | E16: 1952-10-07 | F16: 70 | G16: 4 | H16: Direction | I16: =VLOOKUP(H16,Applic2_consignes!$C$34:$D$37,2,FALSE) -> 2500 | J16: 3000
A17: Cléssoulaporte | B17: Djamila | C17: f | D17: Marié(e) | E17: 1959-09-07 | F17: 63 | G17: 4 | H17: Personnel | I17: =VLOOKUP(H17,Applic2_consignes!$C$34:$D$37,2,FALSE) -> 1600 | J17: 1920
A18: Noux | B18: Marion | C18: f | D18: Divorcé(e) | E18: 1978-12-30 | F18: 44 | G18: 2 | H18: Secrétariat | I18: =VLOOKUP(H18,Applic2_consignes!$C$34:$D$37,2,FALSE) -> 1700 | J18: 1870
A19: Ouzi | B19: Jacques | C19: m | D19: Célibataire | E19: 1969-02-28 | F19: 54 | G19: 3 | H19: Personnel | I19: =VLOOKUP(H19,Applic2_consignes!$C$34:$D$37,2,FALSE) -> 1600 | J19: 1840
A20: Stiké | B20: Sophie | C20: f | D20: Divorcé(e) | E20: 1959-04-04 | F20: 64 | G20: 4 | H20: Secrétariat | I20: =VLOOKUP(H20,Applic2_consignes!$C$34:$D$37,2,FALSE) -> 1700 | J20: 2040
A21: Tare | B21: Guy | C21: m | D21: Divorcé(e) | E21: 1960-08-07 | F21: 62 | G21: 4 | H21: Informatique | I21: =VLOOKUP(H21,Applic2_consignes!$C$34:$D$37,2,FALSE) -> 1900 | J21: 2280
A22: Vaisselle | B22: Aude | C22: f | D22: Marié(e) | E22: 1966-06-06 | F22: 57 | G22: 4 | H22: Secrétariat | I22: =VLOOKUP(H22,Applic2_consignes!$C$34:$D$37,2,FALSE) -> 1700 | J22: 2040
A23: Zetofrais | B23: Mélanie | C23: f | D23: Célibataire | E23: 1978-11-25 | F23: 44 | G23: 2 | H23: Direction | I23: =VLOOKUP(H23,Applic2_consignes!$C$34:$D$37,2,FALSE) -> 2500 | J23: 2750
A24: Touille | B24: Sasha | C24: m | D24: Célibataire | E24: 1982-10-30 | F24: 40 | G24: 2 | H24: Personnel | I24: =VLOOKUP(H24,Applic2_consignes!$C$34:$D$37,2,FALSE) -> 1600 | J24: 1760
A25: Proviste | B25: Alain | C25: m | D25: Marié(e) | E25: 1959-09-09 | F25: 63 | G25: 4 | H25: Personnel | I25: =VLOOKUP(H25,Applic2_consignes!$C$34:$D$37,2,FALSE) -> 1600 | J25: 1920
A26: Peulaporte | B26: Firmin | C26: m | D26: Divorcé(e) | E26: 1965-07-01 | F26: 57 | G26: 4 | H26: Informatique | I26: =VLOOKUP(H26,Applic2_consignes!$C$34:$D$37,2,FALSE) -> 1900 | J26: 2280
A27: Unetitlaine | B27: Jérémy | C27: m | D27: Marié(e) | E27: 1983-06-09 | F27: 40 | G27: 2 | H27: Informatique | I27: =VLOOKUP(H27,Applic2_consignes!$C$34:$D$37,2,FALSE) -> 1900 | J27: 2090

Sheet FiltreElab1_corrigé (hidden)
A3: A l'aide des filtres élaborés, afficher les employés dont le nom commence par un 'p'
B6: Nom
B7: p
B10: Nom | C10: Prénom | D10: Sexe | E10: Etat civil | F10: Date de naissance | G10: Age | H10: Tranches | I10: Services | J10: Salaires Minimum | K10: Salaires
B11: Proviste | C11: Alain | D11: m | E11: Marié(e) | F11: 1959-09-09 | G11: 48 | H11: 3 | I11: Personnel | J11: 1600 | K11: 1840
B12: Peulaporte | C12: Firmin | D12: m | E12: Divorcé(e) | F12: 1965-07-01 | G12: 42 | H12: 2 | I12: Informatique | J12: 1900 | K12: 2090

Sheet FiltreElab2_corrigé (hidden)
A3: A l'aide des filtres élaborés, afficher les nom, prénom et service des employés du secrétariat et de la direction
B5: Services
B6: Secrétariat
B7: Direction
B10: Nom | C10: Prénom | D10: Services
B11: Bijoba | C11: Jo | D11: Direction
B12: Lalalalalalala | C12: Hutch | D12: Direction
B13: Noux | C13: Marion | D13: Secrétariat
B14: Stiké | C14: Sophie | D14: Secrétariat
B15: Vaisselle | C15: Aude | D15: Secrétariat
B16: Zetofrais | C16: Mélanie | D16: Direction

Sheet FiltreElab3_corrigé (hidden)
A3: A l'aide des filtres élaborés, afficher les employés nés entre 1965 et 1975
B7: Date de naissance | C7: Date de naissance
B8: >=1/1/1965 | C8: <1/1/1975
B11: Nom | C11: Prénom | D11: Sexe | E11: Etat civil | F11: Date de naissance | G11: Age | H11: Tranches | I11: Services | J11: Salaires Minimum | K11: Salaires
B12: Bistrot | C12: Alonso | D12: m | E12: Marié(e) | F12: 1966-01-17 | G12: 42 | H12: 2 | I12: Informatique | J12: 1900 | K12: 2090
B13: Culaire | C13: Laury | D13: m | E13: Marié(e) | F13: 1965-05-05 | G13: 42 | H13: 2 | I13: Personnel | J13: 1600 | K13: 1760
B14: Menvussa | C14: Gérard | D14: m | E14: Célibataire | F14: 1970-12-04 | G14: 37 | H14: 2 | I14: Informatique | J14: 1900 | K14: 2090
B15: Ouzi | C15: Jacques | D15: m | E15: Célibataire | F15: 1969-02-28 | G15: 39 | H15: 2 | I15: Personnel | J15: 1600 | K15: 1760
B16: Vaisselle | C16: Aude | D16: f | E16: Marié(e) | F16: 1966-06-06 | G16: 41 | H16: 2 | I16: Secrétariat | J16: 1700 | K16: 1870
B17: Peulaporte | C17: Firmin | D17: m | E17: Divorcé(e) | F17: 1965-07-01 | G17: 42 | H17: 2 | I17: Informatique | J17: 1900 | K17: 2090
B18: Ouzi | C18: Jacques | D18: m | E18: Célibataire | F18: 1969-02-28 | G18: 39 | H18: 2 | I18: Personnel | J18: 1600 | K18: 1760

Sheet FiltreElab4_corrigé (hidden)
A3: A l'aide des filtres élaborés, afficher les employés de l'informatique et de la direction nés entre 1965 et 1975
B6: Date de naissance | C6: Date de naissance | D6: Services
B7: >=1/1/1965 | C7: <1/1/1975 | D7: informatique
B8: >=1/1/1965 | C8: <1/1/1975 | D8: direction
B11: Nom | C11: Prénom | D11: Sexe | E11: Etat civil | F11: Date de naissance | G11: Age | H11: Tranches | I11: Services | J11: Salaires Minimum | K11: Salaires
B12: Bistrot | C12: Alonso | D12: m | E12: Marié(e) | F12: 1966-01-17 | G12: 42 | H12: 2 | I12: Informatique | J12: 1900 | K12: 2090
B13: Menvussa | C13: Gérard | D13: m | E13: Célibataire | F13: 1970-12-04 | G13: 37 | H13: 2 | I13: Informatique | J13: 1900 | K13: 2090
B14: Peulaporte | C14: Firmin | D14: m | E14: Divorcé(e) | F14: 1965-07-01 | G14: 42 | H14: 2 | I14: Informatique | J14: 1900 | K14: 2090

Sheet FiltreElab5_corrigé (hidden)
A3: A l'aide des filtres élaborés, faites une extraction des données sans recopier les doublons
A6: Nom | B6: Prénom | C6: Sexe | D6: Etat civil | E6: Date de naissance | F6: Age | G6: Tranches | H6: Services | I6: Salaires Minimum | J6: Salaires
A7: Bistrot | B7: Alonso | C7: m | D7: Marié(e) | E7: 1966-01-17 | F7: 42 | G7: 2 | H7: Informatique | I7: 1900 | J7: 2090
A8: Bijoba | B8: Jo | C8: m | D8: Marié(e) | E8: 1980-03-15 | F8: 28 | G8: 1 | H8: Direction | I8: 2500 | J8: 2625
A9: Covert | B9: Harry | C9: m | D9: Divorcé(e) | E9: 1942-02-10 | F9: 66 | G9: 4 | H9: Personnel | I9: 1600 | J9: 1920
A10: Culaire | B10: Laury | C10: m | D10: Marié(e) | E10: 1965-05-05 | F10: 42 | G10: 2 | H10: Personnel | I10: 1600 | J10: 1760
A11: Deuf | B11: John | C11: m | D11: Célibataire | E11: 1963-09-08 | F11: 44 | G11: 2 | H11: Informatique | I11: 1900 | J11: 2090
A12: Foupasune | B12: Jean | C12: m | D12: Célibataire | E12: 1975-08-07 | F12: 32 | G12: 1 | H12: Personnel | I12: 1600 | J12: 1680
A13: Lairbon | B13: Oussama | C13: m | D13: Marié(e) | E13: 1983-02-08 | F13: 25 | G13: 1 | H13: Personnel | I13: 1600 | J13: 1680
A14: Menvussa | B14: Gérard | C14: m | D14: Célibataire | E14: 1970-12-04 | F14: 37 | G14: 2 | H14: Informatique | I14: 1900 | J14: 2090
A15: Lalalalalalala | B15: Starsky | C15: m | D15: Célibataire | E15: 1955-07-08 | F15: 52 | G15: 3 | H15: Personnel | I15: 1600 | J15: 1840
A16: Lalalalalalala | B16: Hutch | C16: m | D16: Divorcé(e) | E16: 1952-10-07 | F16: 55 | G16: 4 | H16: Direction | I16: 2500 | J16: 3000
A17: Cléssoulaporte | B17: Djamila | C17: f | D17: Marié(e) | E17: 1959-09-07 | F17: 48 | G17: 3 | H17: Personnel | I17: 1600 | J17: 1840
A18: Noux | B18: Marion | C18: f | D18: Divorcé(e) | E18: 1978-12-30 | F18: 29 | G18: 1 | H18: Secrétariat | I18: 1700 | J18: 1785
A19: Ouzi | B19: Jacques | C19: m | D19: Célibataire | E19: 1969-02-28 | F19: 39 | G19: 2 | H19: Personnel | I19: 1600 | J19: 1760
A20: Stiké | B20: Sophie | C20: f | D20: Divorcé(e) | E20: 1959-04-04 | F20: 49 | G20: 3 | H20: Secrétariat | I20: 1700 | J20: 1955
A21: Tare | B21: Guy | C21: m | D21: Divorcé(e) | E21: 1960-08-07 | F21: 47 | G21: 3 | H21: Informatique | I21: 1900 | J21: 2185
A22: Vaisselle | B22: Aude | C22: f | D22: Marié(e) | E22: 1966-06-06 | F22: 41 | G22: 2 | H22: Secrétariat | I22: 1700 | J22: 1870
A23: Zetofrais | B23: Mélanie | C23: f | D23: Célibataire | E23: 1978-11-25 | F23: 29 | G23: 1 | H23: Direction | I23: 2500 | J23: 2625
A24: Touille | B24: Sasha | C24: m | D24: Célibataire | E24: 1982-10-30 | F24: 25 | G24: 1 | H24: Personnel | I24: 1600 | J24: 1680
A25: Proviste | B25: Alain | C25: m | D25: Marié(e) | E25: 1959-09-09 | F25: 48 | G25: 3 | H25: Personnel | I25: 1600 | J25: 1840
A26: Peulaporte | B26: Firmin | C26: m | D26: Divorcé(e) | E26: 1965-07-01 | F26: 42 | G26: 2 | H26: Informatique | I26: 1900 | J26: 2090
A27: Unetitlaine | B27: Jérémy | C27: m | D27: Marié(e) | E27: 1983-06-09 | F27: 24 | G27: 0 | H27: Informatique | I27: 1900 | J27: 1900

Sheet FiltreElab6_corrigé (hidden)
A3: A l'aide des filtres élaborés, afficher les employés dont l'âge est supérieur à la moyenne des âges
B5: Condition
B6: =#REF!>AVERAGE(#REF!) -> 
B9: Nom | C9: Prénom | D9: Sexe | E9: Etat civil | F9: Date de naissance | G9: Age | H9: Tranches | I9: Services | J9: Salaires Minimum | K9: Salaires
B10: Bistrot | C10: Alonso | D10: m | E10: Marié(e) | F10: 1966-01-17 | G10: 42 | H10: 2 | I10: Informatique | J10: 1900 | K10: 2090
B11: Covert | C11: Harry | D11: m | E11: Divorcé(e) | F11: 1942-02-10 | G11: 66 | H11: 4 | I11: Personnel | J11: 1600 | K11: 1920
B12: Culaire | C12: Laury | D12: m | E12: Marié(e) | F12: 1965-05-05 | G12: 42 | H12: 2 | I12: Personnel | J12: 1600 | K12: 1760
B13: Deuf | C13: John | D13: m | E13: Célibataire | F13: 1963-09-08 | G13: 44 | H13: 2 | I13: Informatique | J13: 1900 | K13: 2090
B14: Lalalalalalala | C14: Starsky | D14: m | E14: Célibataire | F14: 1955-07-08 | G14: 52 | H14: 3 | I14: Personnel | J14: 1600 | K14: 1840
B15: Lalalalalalala | C15: Hutch | D15: m | E15: Divorcé(e) | F15: 1952-10-07 | G15: 55 | H15: 4 | I15: Direction | J15: 2500 | K15: 3000
B16: Cléssoulaporte | C16: Djamila | D16: f | E16: Marié(e) | F16: 1959-09-07 | G16: 48 | H16: 3 | I16: Personnel | J16: 1600 | K16: 1840
B17: Stiké | C17: Sophie | D17: f | E17: Divorcé(e) | F17: 1959-04-04 | G17: 49 | H17: 3 | I17: Secrétariat | J17: 1700 | K17: 1955
B18: Tare | C18: Guy | D18: m | E18: Divorcé(e) | F18: 1960-08-07 | G18: 47 | H18: 3 | I18: Informatique | J18: 1900 | K18: 2185
B19: Vaisselle | C19: Aude | D19: f | E19: Marié(e) | F19: 1966-06-06 | G19: 41 | H19: 2 | I19: Secrétariat | J19: 1700 | K19: 1870
B20: Proviste | C20: Alain | D20: m | E20: Marié(e) | F20: 1959-09-09 | G20: 48 | H20: 3 | I20: Personnel | J20: 1600 | K20: 1840
B21: Peulaporte | C21: Firmin | D21: m | E21: Divorcé(e) | F21: 1965-07-01 | G21: 42 | H21: 2 | I21: Informatique | J21: 1900 | K21: 2090

Sheet Sous-Totaux1_corrigé (hidden)
A1: Sous-Totaux
A3: Utilisez les sous-totaux de façon à afficher le nombre d'employés par service.
A6: Nom | B6: Prénom | C6: Sexe | D6: Etat civil | E6: Date de naissance | F6: Age | G6: Tranches | H6: Services | I6: Salaires Minimum | J6: Salaires
A7: Bijoba | B7: Jo | C7: m | D7: Marié(e) | E7: 1980-03-15 | F7: =DATEDIF(E7,TODAY(),"y") -> 43 | G7: =IF(F7<25,0,IF(F7<35,1,IF(F7<45,2,IF(F7<55,3,4)))) -> 2 | H7: Direction | I7: =VLOOKUP(H7,Applic2_consignes!$C$34:$D$37,2,FALSE) -> 2500 | J7: =I7+5%*G7*I7 -> 2750
A8: Lalalalalalala | B8: Hutch | C8: m | D8: Divorcé(e) | E8: 1952-10-07 | F8: =DATEDIF(E8,TODAY(),"y") -> 70 | G8: =IF(F8<25,0,IF(F8<35,1,IF(F8<45,2,IF(F8<55,3,4)))) -> 4 | H8: Direction | I8: =VLOOKUP(H8,Applic2_consignes!$C$34:$D$37,2,FALSE) -> 2500 | J8: =I8+5%*G8*I8 -> 3000
A9: Zetofrais | B9: Mélanie | C9: f | D9: Célibataire | E9: 1978-11-25 | F9: =DATEDIF(E9,TODAY(),"y") -> 44 | G9: =IF(F9<25,0,IF(F9<35,1,IF(F9<45,2,IF(F9<55,3,4)))) -> 2 | H9: Direction | I9: =VLOOKUP(H9,Applic2_consignes!$C$34:$D$37,2,FALSE) -> 2500 | J9: =I9+5%*G9*I9 -> 2750
G10: Nombre Direction | H10: =SUBTOTAL(3,H7:H9) -> 3
A11: Bistrot | B11: Alonso | C11: m | D11: Marié(e) | E11: 1966-01-17 | F11: =DATEDIF(E11,TODAY(),"y") -> 57 | G11: =IF(F11<25,0,IF(F11<35,1,IF(F11<45,2,IF(F11<55,3,4)))) -> 4 | H11: Informatique | I11: =VLOOKUP(H11,Applic2_consignes!$C$34:$D$37,2,FALSE) -> 1900 | J11: =I11+5%*G11*I11 -> 2280
A12: Deuf | B12: John | C12: m | D12: Célibataire | E12: 1963-09-08 | F12: 59 | G12: 4 | H12: Informatique | I12: =VLOOKUP(H12,Applic2_consignes!$C$34:$D$37,2,FALSE) -> 1900 | J12: 2280
A13: Menvussa | B13: Gérard | C13: m | D13: Célibataire | E13: 1970-12-04 | F13: 52 | G13: 3 | H13: Informatique | I13: =VLOOKUP(H13,Applic2_consignes!$C$34:$D$37,2,FALSE) -> 1900 | J13: 2185
A14: Tare | B14: Guy | C14: m | D14: Divorcé(e) | E14: 1960-08-07 | F14: 62 | G14: 4 | H14: Informatique | I14: =VLOOKUP(H14,Applic2_consignes!$C$34:$D$37,2,FALSE) -> 1900 | J14: 2280
A15: Peulaporte | B15: Firmin | C15: m | D15: Divorcé(e) | E15: 1965-07-01 | F15: 57 | G15: 4 | H15: Informatique | I15: =VLOOKUP(H15,Applic2_consignes!$C$34:$D$37,2,FALSE) -> 1900 | J15: 2280
A16: Unetitlaine | B16: Jérémy | C16: m | D16: Marié(e) | E16: 1983-06-09 | F16: 40 | G16: 2 | H16: Informatique | I16: =VLOOKUP(H16,Applic2_consignes!$C$34:$D$37,2,FALSE) -> 1900 | J16: 2090
G17: Nombre Informatique | H17: =SUBTOTAL(3,H11:H16) -> 6
A18: Covert | B18: Harry | C18: m | D18: Divorcé(e) | E18: 1942-02-10 | F18: =DATEDIF(E18,TODAY(),"y") -> 81 | G18: =IF(F18<25,0,IF(F18<35,1,IF(F18<45,2,IF(F18<55,3,4)))) -> 4 | H18: Personnel | I18: =VLOOKUP(H18,Applic2_consignes!$C$34:$D$37,2,FALSE) -> 1600 | J18: =I18+5%*G18*I18 -> 1920
A19: Culaire | B19: Laury | C19: m | D19: Marié(e) | E19: 1965-05-05 | F19: 58 | G19: 4 | H19: Personnel | I19: =VLOOKUP(H19,Applic2_consignes!$C$34:$D$37,2,FALSE) -> 1600 | J19: 1920
A20: Foupasune | B20: Jean | C20: m | D20: Célibataire | E20: 1975-08-07 | F20: 47 | G20: 3 | H20: Personnel | I20: =VLOOKUP(H20,Applic2_consignes!$C$34:$D$37,2,FALSE) -> 1600 | J20: 1840
A21: Lairbon | B21: Oussama | C21: m | D21: Marié(e) | E21: 1983-02-08 | F21: 40 | G21: 2 | H21: Personnel | I21: =VLOOKUP(H21,Applic2_consignes!$C$34:$D$37,2,FALSE) -> 1600 | J21: 1760
A22: Lalalalalalala | B22: Starsky | C22: m | D22: Célibataire | E22: 1955-07-08 | F22: 67 | G22: 4 | H22: Personnel | I22: =VLOOKUP(H22,Applic2_consignes!$C$34:$D$37,2,FALSE) -> 1600 | J22: 1920
A23: Cléssoulaporte | B23: Djamila | C23: f | D23: Marié(e) | E23: 1959-09-07 | F23: 63 | G23: 4 | H23: Personnel | I23: =VLOOKUP(H23,Applic2_consignes!$C$34:$D$37,2,FALSE) -> 1600 | J23: 1920
A24: Ouzi | B24: Jacques | C24: m | D24: Célibataire | E24: 1969-02-28 | F24: 54 | G24: 3 | H24: Personnel | I24: =VLOOKUP(H24,Applic2_consignes!$C$34:$D$37,2,FALSE) -> 1600 | J24: 1840
A25: Touille | B25: Sasha | C25: m | D25: Célibataire | E25: 1982-10-30 | F25: 40 | G25: 2 | H25: Personnel | I25: =VLOOKUP(H25,Applic2_consignes!$C$34:$D$37,2,FALSE) -> 1600 | J25: 1760
A26: Proviste | B26: Alain | C26: m | D26: Marié(e) | E26: 1959-09-09 | F26: 63 | G26: 4 | H26: Personnel | I26: =VLOOKUP(H26,Applic2_consignes!$C$34:$D$37,2,FALSE) -> 1600 | J26: 1920
A27: Ouzi | B27: Jacques | C27: m | D27: Célibataire | E27: 1969-02-28 | F27: 54 | G27: 3 | H27: Personnel | I27: =VLOOKUP(H27,Applic2_consignes!$C$34:$D$37,2,FALSE) -> 1600 | J27: 1840
G28: Nombre Personnel | H28: =SUBTOTAL(3,H18:H27) -> 10
A29: Noux | B29: Marion | C29: f | D29: Divorcé(e) | E29: 1978-12-30 | F29: =DATEDIF(E29,TODAY(),"y") -> 44 | G29: =IF(F29<25,0,IF(F29<35,1,IF(F29<45,2,IF(F29<55,3,4)))) -> 2 | H29: Secrétariat | I29: =VLOOKUP(H29,Applic2_consignes!$C$34:$D$37,2,FALSE) -> 1700 | J29: =I29+5%*G29*I29 -> 1870
A30: Stiké | B30: Sophie | C30: f | D30: Divorcé(e) | E30: 1959-04-04 | F30: =DATEDIF(E30,TODAY(),"y") -> 64 | G30: =IF(F30<25,0,IF(F30<35,1,IF(F30<45,2,IF(F30<55,3,4)))) -> 4 | H30: Secrétariat | I30: =VLOOKUP(H30,Applic2_consignes!$C$34:$D$37,2,FALSE) -> 1700 | J30: =I30+5%*G30*I30 -> 2040
A31: Vaisselle | B31: Aude | C31: f | D31: Marié(e) | E31: 1966-06-06 | F31: =DATEDIF(E31,TODAY(),"y") -> 57 | G31: =IF(F31<25,0,IF(F31<35,1,IF(F31<45,2,IF(F31<55,3,4)))) -> 4 | H31: Secrétariat | I31: =VLOOKUP(H31,Applic2_consignes!$C$34:$D$37,2,FALSE) -> 1700 | J31: =I31+5%*G31*I31 -> 2040
G32: Nombre Secrétariat | H32: =SUBTOTAL(3,H29:H31) -> 3
G33: Nbval | H33: =SUBTOTAL(3,H7:H31) -> 22

Sheet Sous-Totaux2_corrigé (hidden)
A1: Sous-Totaux
A3: Utilisez les sous-totaux de façon à afficher le salaire moyen par service et par sexe.
A6: Nom | B6: Prénom | C6: Sexe | D6: Etat civil | E6: Date de naissance | F6: Age | G6: Tranches | H6: Services | I6: Salaires Minimum | J6: Salaires
A7: Zetofrais | B7: Mélanie | C7: f | D7: Célibataire | E7: 1978-11-25 | F7: =DATEDIF(E7,TODAY(),"y") -> 44 | G7: =IF(F7<25,0,IF(F7<35,1,IF(F7<45,2,IF(F7<55,3,4)))) -> 2 | H7: Direction | I7: =VLOOKUP(H7,Applic2_consignes!$C$34:$D$37,2,FALSE) -> 2500 | J7: =I7+5%*G7*I7 -> 2750
C8: Moyenne f | J8: =SUBTOTAL(1,J7:J7) -> 2750
A9: Bijoba | B9: Jo | C9: m | D9: Marié(e) | E9: 1980-03-15 | F9: =DATEDIF(E9,TODAY(),"y") -> 43 | G9: =IF(F9<25,0,IF(F9<35,1,IF(F9<45,2,IF(F9<55,3,4)))) -> 2 | H9: Direction | I9: =VLOOKUP(H9,Applic2_consignes!$C$34:$D$37,2,FALSE) -> 2500 | J9: =I9+5%*G9*I9 -> 2750
A10: Lalalalalalala | B10: Hutch | C10: m | D10: Divorcé(e) | E10: 1952-10-07 | F10: =DATEDIF(E10,TODAY(),"y") -> 70 | G10: =IF(F10<25,0,IF(F10<35,1,IF(F10<45,2,IF(F10<55,3,4)))) -> 4 | H10: Direction | I10: =VLOOKUP(H10,Applic2_consignes!$C$34:$D$37,2,FALSE) -> 2500 | J10: =I10+5%*G10*I10 -> 3000
C11: Moyenne m | J11: =SUBTOTAL(1,J9:J10) -> 2875
H12: Moyenne Direction | J12: =SUBTOTAL(1,J7:J10) -> 2833.333333
A13: Bistrot | B13: Alonso | C13: m | D13: Marié(e) | E13: 1966-01-17 | F13: =DATEDIF(E13,TODAY(),"y") -> 57 | G13: =IF(F13<25,0,IF(F13<35,1,IF(F13<45,2,IF(F13<55,3,4)))) -> 4 | H13: Informatique | I13: =VLOOKUP(H13,Applic2_consignes!$C$34:$D$37,2,FALSE) -> 1900 | J13: =I13+5%*G13*I13 -> 2280
A14: Deuf | B14: John | C14: m | D14: Célibataire | E14: 1963-09-08 | F14: 59 | G14: 4 | H14: Informatique | I14: =VLOOKUP(H14,Applic2_consignes!$C$34:$D$37,2,FALSE) -> 1900 | J14: 2280
A15: Menvussa | B15: Gérard | C15: m | D15: Célibataire | E15: 1970-12-04 | F15: 52 | G15: 3 | H15: Informatique | I15: =VLOOKUP(H15,Applic2_consignes!$C$34:$D$37,2,FALSE) -> 1900 | J15: 2185
A16: Tare | B16: Guy | C16: m | D16: Divorcé(e) | E16: 1960-08-07 | F16: 62 | G16: 4 | H16: Informatique | I16: =VLOOKUP(H16,Applic2_consignes!$C$34:$D$37,2,FALSE) -> 1900 | J16: 2280
A17: Peulaporte | B17: Firmin | C17: m | D17: Divorcé(e) | E17: 1965-07-01 | F17: 57 | G17: 4 | H17: Informatique | I17: =VLOOKUP(H17,Applic2_consignes!$C$34:$D$37,2,FALSE) -> 1900 | J17: 2280
A18: Unetitlaine | B18: Jérémy | C18: m | D18: Marié(e) | E18: 1983-06-09 | F18: 40 | G18: 2 | H18: Informatique | I18: =VLOOKUP(H18,Applic2_consignes!$C$34:$D$37,2,FALSE) -> 1900 | J18: 2090
H19: Moyenne Informatique | J19: =SUBTOTAL(1,J13:J18) -> 2232.5
C20: Moyenne m | J20: =SUBTOTAL(1,J13:J18) -> 2232.5
A21: Cléssoulaporte | B21: Djamila | C21: f | D21: Marié(e) | E21: 1959-09-07 | F21: =DATEDIF(E21,TODAY(),"y") -> 63 | G21: =IF(F21<25,0,IF(F21<35,1,IF(F21<45,2,IF(F21<55,3,4)))) -> 4 | H21: Personnel | I21: =VLOOKUP(H21,Applic2_consignes!$C$34:$D$37,2,FALSE) -> 1600 | J21: =I21+5%*G21*I21 -> 1920
C22: Moyenne f | J22: =SUBTOTAL(1,J21:J21) -> 1920
A23: Covert | B23: Harry | C23: m | D23: Divorcé(e) | E23: 1942-02-10 | F23: =DATEDIF(E23,TODAY(),"y") -> 81 | G23: =IF(F23<25,0,IF(F23<35,1,IF(F23<45,2,IF(F23<55,3,4)))) -> 4 | H23: Personnel | I23: =VLOOKUP(H23,Applic2_consignes!$C$34:$D$37,2,FALSE) -> 1600 | J23: =I23+5%*G23*I23 -> 1920
A24: Culaire | B24: Laury | C24: m | D24: Marié(e) | E24: 1965-05-05 | F24: 58 | G24: 4 | H24: Personnel | I24: =VLOOKUP(H24,Applic2_consignes!$C$34:$D$37,2,FALSE) -> 1600 | J24: 1920
A25: Foupasune | B25: Jean | C25: m | D25: Célibataire | E25: 1975-08-07 | F25: 47 | G25: 3 | H25: Personnel | I25: =VLOOKUP(H25,Applic2_consignes!$C$34:$D$37,2,FALSE) -> 1600 | J25: 1840
A26: Lairbon | B26: Oussama | C26: m | D26: Marié(e) | E26: 1983-02-08 | F26: 40 | G26: 2 | H26: Personnel | I26: =VLOOKUP(H26,Applic2_consignes!$C$34:$D$37,2,FALSE) -> 1600 | J26: 1760
A27: Lalalalalalala | B27: Starsky | C27: m | D27: Célibataire | E27: 1955-07-08 | F27: 67 | G27: 4 | H27: Personnel | I27: =VLOOKUP(H27,Applic2_consignes!$C$34:$D$37,2,FALSE) -> 1600 | J27: 1920
A28: Ouzi | B28: Jacques | C28: m | D28: Célibataire | E28: 1969-02-28 | F28: 54 | G28: 3 | H28: Personnel | I28: =VLOOKUP(H28,Applic2_consignes!$C$34:$D$37,2,FALSE) -> 1600 | J28: 1840
A29: Touille | B29: Sasha | C29: m | D29: Célibataire | E29: 1982-10-30 | F29: 40 | G29: 2 | H29: Personnel | I29: =VLOOKUP(H29,Applic2_consignes!$C$34:$D$37,2,FALSE) -> 1600 | J29: 1760
A30: Proviste | B30: Alain | C30: m | D30: Marié(e) | E30: 1959-09-09 | F30: 63 | G30: 4 | H30: Personnel | I30: =VLOOKUP(H30,Applic2_consignes!$C$34:$D$37,2,FALSE) -> 1600 | J30: 1920
A31: Ouzi | B31: Jacques | C31: m | D31: Célibataire | E31: 1969-02-28 | F31: 54 | G31: 3 | H31: Personnel | I31: =VLOOKUP(H31,Applic2_consignes!$C$34:$D$37,2,FALSE) -> 1600 | J31: 1840
H32: Moyenne Personnel | J32: =SUBTOTAL(1,J21:J31) -> 1864
C33: Moyenne m | J33: =SUBTOTAL(1,J23:J31) -> 1857.777778
A34: Noux | B34: Marion | C34: f | D34: Divorcé(e) | E34: 1978-12-30 | F34: =DATEDIF(E34,TODAY(),"y") -> 44 | G34: =IF(F34<25,0,IF(F34<35,1,IF(F34<45,2,IF(F34<55,3,4)))) -> 2 | H34: Secrétariat | I34: =VLOOKUP(H34,Applic2_consignes!$C$34:$D$37,2,FALSE) -> 1700 | J34: =I34+5%*G34*I34 -> 1870
A35: Stiké | B35: Sophie | C35: f | D35: Divorcé(e) | E35: 1959-04-04 | F35: =DATEDIF(E35,TODAY(),"y") -> 64 | G35: =IF(F35<25,0,IF(F35<35,1,IF(F35<45,2,IF(F35<55,3,4)))) -> 4 | H35: Secrétariat | I35: =VLOOKUP(H35,Applic2_consignes!$C$34:$D$37,2,FALSE) -> 1700 | J35: =I35+5%*G35*I35 -> 2040
A36: Vaisselle | B36: Aude | C36: f | D36: Marié(e) | E36: 1966-06-06 | F36: =DATEDIF(E36,TODAY(),"y") -> 57 | G36: =IF(F36<25,0,IF(F36<35,1,IF(F36<45,2,IF(F36<55,3,4)))) -> 4 | H36: Secrétariat | I36: =VLOOKUP(H36,Applic2_consignes!$C$34:$D$37,2,FALSE) -> 1700 | J36: =I36+5%*G36*I36 -> 2040
H37: Moyenne Secrétariat | J37: =SUBTOTAL(1,J34:J36) -> 1983.333333
C38: Moyenne f | J38: =SUBTOTAL(1,J34:J36) -> 1983.333333
H39: Moyenne | J39: =SUBTOTAL(1,J7:J36) -> 2112.954545

Sheet Sous-Totaux3_corrigé (hidden)
A1: Sous-Totaux
A3: Utilisez les sous-totaux de façon à afficher le nombre d'employés et la moyenne des âges par sexe et par état civil.
A6: Nom | B6: Prénom | C6: Sexe | D6: Etat civil | E6: Date de naissance | F6: Age | G6: Tranches | H6: Services | I6: Salaires Minimum | J6: Salaires
A7: Zetofrais | B7: Mélanie | C7: f | D7: Célibataire | E7: 1978-11-25 | F7: =DATEDIF(E7,TODAY(),"y") -> 44 | G7: =IF(F7<25,0,IF(F7<35,1,IF(F7<45,2,IF(F7<55,3,4)))) -> 2 | H7: Direction | I7: =VLOOKUP(H7,Applic2_consignes!$C$34:$D$37,2,FALSE) -> 2500 | J7: =I7+5%*G7*I7 -> 2750
A8: =SUBTOTAL(3,A7:A7) -> 1 | D8: Nombre Célibataire
D9: Moyenne Célibataire | F9: =SUBTOTAL(1,F7:F7) -> 44
A10: Noux | B10: Marion | C10: f | D10: Divorcé(e) | E10: 1978-12-30 | F10: =DATEDIF(E10,TODAY(),"y") -> 44 | G10: =IF(F10<25,0,IF(F10<35,1,IF(F10<45,2,IF(F10<55,3,4)))) -> 2 | H10: Secrétariat | I10: =VLOOKUP(H10,Applic2_consignes!$C$34:$D$37,2,FALSE) -> 1700 | J10: =I10+5%*G10*I10 -> 1870
A11: Stiké | B11: Sophie | C11: f | D11: Divorcé(e) | E11: 1959-04-04 | F11: =DATEDIF(E11,TODAY(),"y") -> 64 | G11: =IF(F11<25,0,IF(F11<35,1,IF(F11<45,2,IF(F11<55,3,4)))) -> 4 | H11: Secrétariat | I11: =VLOOKUP(H11,Applic2_consignes!$C$34:$D$37,2,FALSE) -> 1700 | J11: =I11+5%*G11*I11 -> 2040
A12: =SUBTOTAL(3,A10:A11) -> 2 | D12: Nombre Divorcé(e)
D13: Moyenne Divorcé(e) | F13: =SUBTOTAL(1,F10:F11) -> 54
A14: Cléssoulaporte | B14: Djamila | C14: f | D14: Marié(e) | E14: 1959-09-07 | F14: =DATEDIF(E14,TODAY(),"y") -> 63 | G14: =IF(F14<25,0,IF(F14<35,1,IF(F14<45,2,IF(F14<55,3,4)))) -> 4 | H14: Personnel | I14: =VLOOKUP(H14,Applic2_consignes!$C$34:$D$37,2,FALSE) -> 1600 | J14: =I14+5%*G14*I14 -> 1920
A15: Vaisselle | B15: Aude | C15: f | D15: Marié(e) | E15: 1966-06-06 | F15: =DATEDIF(E15,TODAY(),"y") -> 57 | G15: =IF(F15<25,0,IF(F15<35,1,IF(F15<45,2,IF(F15<55,3,4)))) -> 4 | H15: Secrétariat | I15: =VLOOKUP(H15,Applic2_consignes!$C$34:$D$37,2,FALSE) -> 1700 | J15: =I15+5%*G15*I15 -> 2040
A16: =SUBTOTAL(3,A14:A15) -> 2 | D16: Nombre Marié(e)
D17: Moyenne Marié(e) | F17: =SUBTOTAL(1,F14:F15) -> 60
C18: Moyenne f | F18: =SUBTOTAL(1,F7:F15) -> 54.4
A19: =SUBTOTAL(3,A7:A15) -> 5 | C19: Nombre f
A20: Deuf | B20: John | C20: m | D20: Célibataire | E20: 1963-09-08 | F20: =DATEDIF(E20,TODAY(),"y") -> 59 | G20: =IF(F20<25,0,IF(F20<35,1,IF(F20<45,2,IF(F20<55,3,4)))) -> 4 | H20: Informatique | I20: =VLOOKUP(H20,Applic2_consignes!$C$34:$D$37,2,FALSE) -> 1900 | J20: =I20+5%*G20*I20 -> 2280
A21: Foupasune | B21: Jean | C21: m | D21: Célibataire | E21: 1975-08-07 | F21: 47 | G21: 3 | H21: Personnel | I21: =VLOOKUP(H21,Applic2_consignes!$C$34:$D$37,2,FALSE) -> 1600 | J21: 1840
A22: Menvussa | B22: Gérard | C22: m | D22: Célibataire | E22: 1970-12-04 | F22: 52 | G22: 3 | H22: Informatique | I22: =VLOOKUP(H22,Applic2_consignes!$C$34:$D$37,2,FALSE) -> 1900 | J22: 2185
A23: Lalalalalalala | B23: Starsky | C23: m | D23: Célibataire | E23: 1955-07-08 | F23: 67 | G23: 4 | H23: Personnel | I23: =VLOOKUP(H23,Applic2_consignes!$C$34:$D$37,2,FALSE) -> 1600 | J23: 1920
A24: Ouzi | B24: Jacques | C24: m | D24: Célibataire | E24: 1969-02-28 | F24: 54 | G24: 3 | H24: Personnel | I24: =VLOOKUP(H24,Applic2_consignes!$C$34:$D$37,2,FALSE) -> 1600 | J24: 1840
A25: Touille | B25: Sasha | C25: m | D25: Célibataire | E25: 1982-10-30 | F25: 40 | G25: 2 | H25: Personnel | I25: =VLOOKUP(H25,Applic2_consignes!$C$34:$D$37,2,FALSE) -> 1600 | J25: 1760
A26: Ouzi | B26: Jacques | C26: m | D26: Célibataire | E26: 1969-02-28 | F26: 54 | G26: 3 | H26: Personnel | I26: =VLOOKUP(H26,Applic2_consignes!$C$34:$D$37,2,FALSE) -> 1600 | J26: 1840
A27: =SUBTOTAL(3,A20:A26) -> 7 | D27: Nombre Célibataire
D28: Moyenne Célibataire | F28: =SUBTOTAL(1,F20:F26) -> 53.28571429
A29: Covert | B29: Harry | C29: m | D29: Divorcé(e) | E29: 1942-02-10 | F29: =DATEDIF(E29,TODAY(),"y") -> 81 | G29: =IF(F29<25,0,IF(F29<35,1,IF(F29<45,2,IF(F29<55,3,4)))) -> 4 | H29: Personnel | I29: =VLOOKUP(H29,Applic2_consignes!$C$34:$D$37,2,FALSE) -> 1600 | J29: =I29+5%*G29*I29 -> 1920
A30: Lalalalalalala | B30: Hutch | C30: m | D30: Divorcé(e) | E30: 1952-10-07 | F30: =DATEDIF(E30,TODAY(),"y") -> 70 | G30: =IF(F30<25,0,IF(F30<35,1,IF(F30<45,2,IF(F30<55,3,4)))) -> 4 | H30: Direction | I30: =VLOOKUP(H30,Applic2_consignes!$C$34:$D$37,2,FALSE) -> 2500 | J30: =I30+5%*G30*I30 -> 3000
A31: Tare | B31: Guy | C31: m | D31: Divorcé(e) | E31: 1960-08-07 | F31: =DATEDIF(E31,TODAY(),"y") -> 62 | G31: =IF(F31<25,0,IF(F31<35,1,IF(F31<45,2,IF(F31<55,3,4)))) -> 4 | H31: Informatique | I31: =VLOOKUP(H31,Applic2_consignes!$C$34:$D$37,2,FALSE) -> 1900 | J31: =I31+5%*G31*I31 -> 2280
A32: Peulaporte | B32: Firmin | C32: m | D32: Divorcé(e) | E32: 1965-07-01 | F32: =DATEDIF(E32,TODAY(),"y") -> 57 | G32: =IF(F32<25,0,IF(F32<35,1,IF(F32<45,2,IF(F32<55,3,4)))) -> 4 | H32: Informatique | I32: =VLOOKUP(H32,Applic2_consignes!$C$34:$D$37,2,FALSE) -> 1900 | J32: =I32+5%*G32*I32 -> 2280
A33: =SUBTOTAL(3,A29:A32) -> 4 | D33: Nombre Divorcé(e)
D34: Moyenne Divorcé(e) | F34: =SUBTOTAL(1,F29:F32) -> 67.5
A35: Bistrot | B35: Alonso | C35: m | D35: Marié(e) | E35: 1966-01-17 | F35: =DATEDIF(E35,TODAY(),"y") -> 57 | G35: =IF(F35<25,0,IF(F35<35,1,IF(F35<45,2,IF(F35<55,3,4)))) -> 4 | H35: Informatique | I35: =VLOOKUP(H35,Applic2_consignes!$C$34:$D$37,2,FALSE) -> 1900 | J35: =I35+5%*G35*I35 -> 2280
A36: Bijoba | B36: Jo | C36: m | D36: Marié(e) | E36: 1980-03-15 | F36: 43 | G36: 2 | H36: Direction | I36: =VLOOKUP(H36,Applic2_consignes!$C$34:$D$37,2,FALSE) -> 2500 | J36: 2750
A37: Culaire | B37: Laury | C37: m | D37: Marié(e) | E37: 1965-05-05 | F37: 58 | G37: 4 | H37: Personnel | I37: =VLOOKUP(H37,Applic2_consignes!$C$34:$D$37,2,FALSE) -> 1600 | J37: 1920
A38: Lairbon | B38: Oussama | C38: m | D38: Marié(e) | E38: 1983-02-08 | F38: 40 | G38: 2 | H38: Personnel | I38: =VLOOKUP(H38,Applic2_consignes!$C$34:$D$37,2,FALSE) -> 1600 | J38: 1760
A39: Proviste | B39: Alain | C39: m | D39: Marié(e) | E39: 1959-09-09 | F39: 63 | G39: 4 | H39: Personnel | I39: =VLOOKUP(H39,Applic2_consignes!$C$34:$D$37,2,FALSE) -> 1600 | J39: 1920
A40: Unetitlaine | B40: Jérémy | C40: m | D40: Marié(e) | E40: 1983-06-09 | F40: 40 | G40: 2 | H40: Informatique | I40: =VLOOKUP(H40,Applic2_consignes!$C$34:$D$37,2,FALSE) -> 1900 | J40: 2090
A41: =SUBTOTAL(3,A35:A40) -> 6 | D41: Nombre Marié(e)
D42: Moyenne Marié(e) | F42: =SUBTOTAL(1,F35:F40) -> 50.16666667
C43: Moyenne m | F43: =SUBTOTAL(1,F20:F40) -> 55.52941176
A44: =SUBTOTAL(3,A20:A40) -> 17 | C44: Nombre m
D45: Nbval
C46: Moyenne | F46: =SUBTOTAL(1,F7:F40) -> 55.27272727
D47: Moyenne Nbval | F47: =SUBTOTAL(1,F45:F45) -> 
A48: =SUBTOTAL(3,A7:A40) -> 22 | C48: Nbval
D49: Moyenne | F49: =SUBTOTAL(1,F7:F45) -> 55.27272727

Sheet Fonctions classiques_corrigé (hidden)
A1: Utilisation des fonctions classiques | M1: Retour sommaire
A3: Utilisez les fonctions classiques de façon à afficher le nombre d'employés par service.
A4: Utilisez les fonctions classiques de façon à afficher le nombre d'employés et la moyenne des âges par sexe et par état civil.
A6: Nom | B6: Prénom | C6: Sexe | D6: Etat civil | E6: Date de naissance | F6: Age | G6: Tranches | H6: Services | I6: Salaires Minimum | J6: Salaires
A7: Bistrot | B7: Alonso | C7: m | D7: Marié(e) | E7: 1966-01-17 | F7: =DATEDIF(E7,TODAY(),"y") -> 57 | G7: =IF(F7<25,0,IF(F7<35,1,IF(F7<45,2,IF(F7<55,3,4)))) -> 4 | H7: Informatique | I7: =VLOOKUP(H7,Applic2_consignes!$C$34:$D$37,2,FALSE) -> 1900 | J7: =I7+5%*G7*I7 -> 2280 | M7: Nombre d'employés par service
A8: Bijoba | B8: Jo | C8: m | D8: Marié(e) | E8: 1980-03-15 | F8: 43 | G8: 2 | H8: Direction | I8: =VLOOKUP(H8,Applic2_consignes!$C$34:$D$37,2,FALSE) -> 2500 | J8: 2750
A9: Covert | B9: Harry | C9: m | D9: Divorcé(e) | E9: 1942-02-10 | F9: 81 | G9: 4 | H9: Personnel | I9: =VLOOKUP(H9,Applic2_consignes!$C$34:$D$37,2,FALSE) -> 1600 | J9: 1920 | M9: Direction | N9: =COUNTIF($H$7:$H$28,M9) -> 3
A10: Culaire | B10: Laury | C10: m | D10: Marié(e) | E10: 1965-05-05 | F10: 58 | G10: 4 | H10: Personnel | I10: =VLOOKUP(H10,Applic2_consignes!$C$34:$D$37,2,FALSE) -> 1600 | J10: 1920 | M10: Informatique | N10: =COUNTIF($H$7:$H$28,M10) -> 6
A11: Deuf | B11: John | C11: m | D11: Célibataire | E11: 1963-09-08 | F11: 59 | G11: 4 | H11: Informatique | I11: =VLOOKUP(H11,Applic2_consignes!$C$34:$D$37,2,FALSE) -> 1900 | J11: 2280 | M11: Personnel | N11: =COUNTIF($H$7:$H$28,M11) -> 10
A12: Foupasune | B12: Jean | C12: m | D12: Célibataire | E12: 1975-08-07 | F12: 47 | G12: 3 | H12: Personnel | I12: =VLOOKUP(H12,Applic2_consignes!$C$34:$D$37,2,FALSE) -> 1600 | J12: 1840 | M12: Secrétariat | N12: =COUNTIF($H$7:$H$28,M12) -> 3
A13: Lairbon | B13: Oussama | C13: m | D13: Marié(e) | E13: 1983-02-08 | F13: 40 | G13: 2 | H13: Personnel | I13: =VLOOKUP(H13,Applic2_consignes!$C$34:$D$37,2,FALSE) -> 1600 | J13: 1760
A14: Menvussa | B14: Gérard | C14: m | D14: Célibataire | E14: 1970-12-04 | F14: 52 | G14: 3 | H14: Informatique | I14: =VLOOKUP(H14,Applic2_consignes!$C$34:$D$37,2,FALSE) -> 1900 | J14: 2185 | M14: Nombre d'employés par sexe et état civil
A15: Lalalalalalala | B15: Starsky | C15: m | D15: Célibataire | E15: 1955-07-08 | F15: 67 | G15: 4 | H15: Personnel | I15: =VLOOKUP(H15,Applic2_consignes!$C$34:$D$37,2,FALSE) -> 1600 | J15: 1920
A16: Lalalalalalala | B16: Hutch | C16: m | D16: Divorcé(e) | E16: 1952-10-07 | F16: 70 | G16: 4 | H16: Direction | I16: =VLOOKUP(H16,Applic2_consignes!$C$34:$D$37,2,FALSE) -> 2500 | J16: 3000 | N16: f | O16: m
A17: Cléssoulaporte | B17: Djamila | C17: f | D17: Marié(e) | E17: 1959-09-07 | F17: 63 | G17: 4 | H17: Personnel | I17: =VLOOKUP(H17,Applic2_consignes!$C$34:$D$37,2,FALSE) -> 1600 | J17: 1920 | M17: Célibataire | N17: =COUNTIFS($C$7:$C$28,N$16,$D$7:$D$28,$M17) -> 1 | O17: 7
A18: Noux | B18: Marion | C18: f | D18: Divorcé(e) | E18: 1978-12-30 | F18: 44 | G18: 2 | H18: Secrétariat | I18: =VLOOKUP(H18,Applic2_consignes!$C$34:$D$37,2,FALSE) -> 1700 | J18: 1870 | M18: Divorcé(e) | N18: 2 | O18: 4
A19: Ouzi | B19: Jacques | C19: m | D19: Célibataire | E19: 1969-02-28 | F19: 54 | G19: 3 | H19: Personnel | I19: =VLOOKUP(H19,Applic2_consignes!$C$34:$D$37,2,FALSE) -> 1600 | J19: 1840 | M19: Marié(e) | N19: 2 | O19: 6
A20: Stiké | B20: Sophie | C20: f | D20: Divorcé(e) | E20: 1959-04-04 | F20: 64 | G20: 4 | H20: Secrétariat | I20: =VLOOKUP(H20,Applic2_consignes!$C$34:$D$37,2,FALSE) -> 1700 | J20: 2040
A21: Tare | B21: Guy | C21: m | D21: Divorcé(e) | E21: 1960-08-07 | F21: 62 | G21: 4 | H21: Informatique | I21: =VLOOKUP(H21,Applic2_consignes!$C$34:$D$37,2,FALSE) -> 1900 | J21: 2280 | M21: Salaire moyen par sexe et état civil
A22: Vaisselle | B22: Aude | C22: f | D22: Marié(e) | E22: 1966-06-06 | F22: 57 | G22: 4 | H22: Secrétariat | I22: =VLOOKUP(H22,Applic2_consignes!$C$34:$D$37,2,FALSE) -> 1700 | J22: 2040
A23: Zetofrais | B23: Mélanie | C23: f | D23: Célibataire | E23: 1978-11-25 | F23: 44 | G23: 2 | H23: Direction | I23: =VLOOKUP(H23,Applic2_consignes!$C$34:$D$37,2,FALSE) -> 2500 | J23: 2750 | N23: f | O23: m
A24: Touille | B24: Sasha | C24: m | D24: Célibataire | E24: 1982-10-30 | F24: 40 | G24: 2 | H24: Personnel | I24: =VLOOKUP(H24,Applic2_consignes!$C$34:$D$37,2,FALSE) -> 1600 | J24: 1760 | M24: Célibataire | N24: =AVERAGEIFS($J$7:$J$28,$C$7:$C$28,N$23,$D$7:$D$28,$M24) -> 2750 | O24: =AVERAGEIFS($J$7:$J$28,$C$7:$C$28,O$23,$D$7:$D$28,$M24) -> 1952.142857
A25: Proviste | B25: Alain | C25: m | D25: Marié(e) | E25: 1959-09-09 | F25: 63 | G25: 4 | H25: Personnel | I25: =VLOOKUP(H25,Applic2_consignes!$C$34:$D$37,2,FALSE) -> 1600 | J25: 1920 | M25: Divorcé(e) | N25: =AVERAGEIFS($J$7:$J$28,$C$7:$C$28,N$23,$D$7:$D$28,$M25) -> 1955 | O25: 2370
A26: Peulaporte | B26: Firmin | C26: m | D26: Divorcé(e) | E26: 1965-07-01 | F26: 57 | G26: 4 | H26: Informatique | I26: =VLOOKUP(H26,Applic2_consignes!$C$34:$D$37,2,FALSE) -> 1900 | J26: 2280 | M26: Marié(e) | N26: 1980 | O26: 2120
A27: Unetitlaine | B27: Jérémy | C27: m | D27: Marié(e) | E27: 1983-06-09 | F27: 40 | G27: 2 | H27: Informatique | I27: =VLOOKUP(H27,Applic2_consignes!$C$34:$D$37,2,FALSE) -> 1900 | J27: 2090
A28: Ouzi | B28: Jacques | C28: m | D28: Célibataire | E28: 1969-02-28 | F28: 54 | G28: 3 | H28: Personnel | I28: =VLOOKUP(H28,Applic2_consignes!$C$34:$D$37,2,FALSE) -> 1600 | J28: 1840

Sheet TCD1_corrigé (hidden)
A3: Utilisez les tableaux croisés dynamiques de façon à afficher le nombre d'employés par service.
B8: Nombre de Nom
B9: Services | C9: Total
B10: Direction | C10: 3
B11: Informatique | C11: 6
B12: Personnel | C12: 10
B13: Secrétariat | C13: 3
B14: Total général | C14: 22

Sheet TCD2_corrigé (hidden)
A3: Utilisez les tableaux croisés dynamiques de façon à afficher le salaire moyen par service et par sexe.
B7: Moyenne de Salaires | C7: Sexe
B8: Services | C8: f | D8: m | E8: Total général
B9: Direction | C9: 2750 | D9: 2875 | E9: 2833.333333
B10: Informatique | D10: 2200.833333 | E10: 2200.833333
B11: Personnel | C11: 1920 | D11: 1840 | E11: 1848
B12: Secrétariat | C12: 1955 | E12: 1955
B13: Total général | C13: 2107 | D13: 2089.117647 | E13: 2093.181818

Sheet TCD3_corrigé (hidden)
A3: Utilisez les tableaux croisés dynamiqes de façon à afficher le nombre d'employés et la moyenne des âges par sexe et par état civil.
C8: Sexe | D8: Données
C9: f | E9: m
B10: Etat civil | C10: Nombre | D10: Moyenne des Ages | E10: Nombre | F10: Moyenne des Ages
B11: Célibataire | C11: 1 | D11: 40 | E11: 7 | F11: 49.85714286
B12: Divorcé(e) | C12: 2 | D12: 50 | E12: 4 | F12: 64.25
B13: Marié(e) | C13: 2 | D13: 56.5 | E13: 6 | F13: 46.33333333
B14: Total général | C14: 5 | D14: 50.6 | E14: 17 | F14: 52

Sheet TCD4_corrigé (hidden)
A3: Utilisez les tableaux croisés dynamiques de façon à afficher le nombre d'employés ayant un salaire compris entre 1600 et 1800, entre 1800 et 2000 et ainsi de suite jusque 3000.
B8: Nombre de Nom
B9: Salaires | C9: Total
B10: 1600-1799 | C10: 3
B11: 1800-1999 | C11: 9
B12: 2000-2199 | C12: 5
B13: 2200-2399 | C13: 2
B14: 2600-2799 | C14: 2
B15: 2800-3000 | C15: 1
B16: Total général | C16: 22

Sheet TCD5_corrigé (hidden)
A3: Afin d'établir un budget 'anniversaire', la société souhaite savoir quel est le nombre de personnes nées par mois.
A4: Etablir un TCD fournissant ces rensigenements.
B8: Nombre de Nom
B9: Date de naissance | C9: Total
B10: janv | C10: 1
B11: févr | C11: 4
B12: mars | C12: 1
B13: avr | C13: 1
B14: mai | C14: 1
B15: juin | C15: 2
B16: juil | C16: 2
B17: août | C17: 2
B18: sept | C18: 3
B19: oct | C19: 2
B20: nov | C20: 1
B21: déc | C21: 2
B22: Total général | C22: 22

Sheet TCD6_corrigé (hidden)
A3: Créez un TCD donnant le pourcentage de femmes et d'hommes par service.
A4: A partir de ça, créez un graphique croisé dynamique représentant ce pourcentage en 'histogramme'.
B8: Nombre de Nom | C8: Sexe
B9: Services | C9: f | D9: m
B10: Direction | C10: 0.3333333333 | D10: 0.6666666667
B11: Informatique | C11: 0 | D11: 1
B12: Personnel | C12: 0.1 | D12: 0.9
B13: Secrétariat | C13: 1 | D13: 0
B14: Total général | C14: 0.2272727273 | D14: 0.7727272727
